Workbook

Sheet Index
A1: Sheet | B1: Magazine PDF | C1: Journal | D1: Title | E1: Citation | F1: F_Name | G1: L_Name | H1: Year | I1: Volcanoe | J1: Full Citation
A2: H01 | B2: C:\Essays\Geo_Dating\Historic\Historic_01.pdf | C2: Journal Of Petrology, 45(9)1845–1875 | D2: Variable Impact of the Subducted Slab | E2: ="(" & G2 & ", " & H2 & ", P. )" -> (Jicha, 2004, P. ) | F2: B. R. | G2: Jicha | H2: 2004 | I2: Aleutian Island | J2: =G2 & ", " & F2 & ", " & H2 & ", " & D2 & ", " & C2 -> Jicha, B. R., 2004, Variable Impact of the Subducted Slab, Journal Of Petrology, 45(9)1845–1875
A3: H02 | B3: C:\Essays\Geo_Dating\Historic\Historic_02.pdf | C3: Bulletin Volcanology, 59:577–592 | D3: Earthquake swarm of Loihi seamount | E3: (Garcia, 1998, P. ) | F3: M. O. | G3: Garcia | H3: 1998 | I3: Lohi Seamount | J3: Garcia, M. O., 1998, Earthquake swarm of Loihi seamount, Bulletin Volcanology, 59:577–592
A4: H03 | B4: C:\Essays\Geo_Dating\Historic\Historic_03.pdf | C4: Geochemistry, Geophysics, Geosystems, 14(1):4849-4873 | D4: Kılauea’s Puu Oo eruption (1983–2010) | E4: (Greene, 2013, P. ) | F4: Andrew R. | G4: Greene | H4: 2013 | I4: Kilauea | J4: Greene, Andrew R., 2013, Kılauea’s Puu Oo eruption (1983–2010), Geochemistry, Geophysics, Geosystems, 14(1):4849-4873
A5: H04 | B5: C:\Essays\Geo_Dating\Historic\Historic_04.pdf | C5: Journal Of Petrology, 49(7):1297-1318 | D5: Kilauea’s Puu Oo Eruption | E5: (Marske, 2008, P. ) | F5: Jared P. | G5: Marske | H5: 2008 | I5: Kilauea | J5: Marske, Jared P. , 2008, Kilauea’s Puu Oo Eruption, Journal Of Petrology, 49(7):1297-1318
A6: H05 | B6: C:\Essays\Geo_Dating\Historic\Historic_05.pdf | C6: Journal of Volcanology and Geothermal Research 146:139-170 | D6: The May 2003 eruption of Anatahan volcano | E6: (Wade, 2005, P. ) | F6: Jennifer A. | G6: Wade | H6: 2005 | I6: Anatahan Volcano | J6: Wade, Jennifer A., 2005, The May 2003 eruption of Anatahan volcano, Journal of Volcanology and Geothermal Research 146:139-170
A7: H06 | B7: C:\Essays\Geo_Dating\Historic\Historic_06.pdf | C7: http://pubs.usgs.gov/pinatubo/bernard/table9.html | D7: 1991 Eruption Products of Mount Pinatubo | E7: (Bernard, 1999, P. ) | F7: Alain | G7: Bernard | H7: 1999 | I7: Pinatubo | J7: Bernard, Alain, 1999, 1991 Eruption Products of Mount Pinatubo, http://pubs.usgs.gov/pinatubo/bernard/table9.html
A8: H06 | B8: C:\Essays\Geo_Dating\Historic\Historic_06.pdf | C8: http://pubs.usgs.gov/pinatubo/castillo/index.html | D8: Geochemistry of Mount Pinatubo Volcanic Rocks | E8: (Castillo, 1999, P. ) | F8: Paterno R. | G8: Castillo | H8: 1999 | I8: Pinatubo | J8: Castillo, Paterno R., 1999, Geochemistry of Mount Pinatubo Volcanic Rocks, http://pubs.usgs.gov/pinatubo/castillo/index.html
A9: H07 | B9: C:\Essays\Geo_Dating\Historic\Historic_07.pdf | C9: Journal of Petrology, 53(2):271-297 | D9: The Great Tambora Eruption in 1815 | E9: (Gertisser, 2012, P. ) | F9: R. | G9: Gertisser | H9: 2012 | I9: Mauna Loa | J9: Gertisser, R., 2012, The Great Tambora Eruption in 1815, Journal of Petrology, 53(2):271-297
A10: H08 | B10: C:\Essays\Geo_Dating\Historic\Historic_08.pdf | C10: Journal Of Geophysical Research, 115(B12201):1-22 | D10: The 1912 Katmai‐Novarupta Eruption | E10: (Turner, 2010, P. ) | F10: Simon | G10: Turner | H10: 2010 | I10: Lohi Seamount | J10: Turner, Simon, 2010, The 1912 Katmai‐Novarupta Eruption, Journal Of Geophysical Research, 115(B12201):1-22
A11: H09 | B11: C:\Essays\Geo_Dating\Historic\Historic_09.pdf | C11: Journal Of Petrology, 40(8)1321–1342 | D11: Melting History of Kilauea Volcano | E11: (Pietruszka, 1999, P. ) | F11: Aaron J. | G11: Pietruszka | H11: 1999 | I11: Kilauea | J11: Pietruszka, Aaron J. , 1999, Melting History of Kilauea Volcano, Journal Of Petrology, 40(8)1321–1342
A12: H10 | B12: C:\Essays\Geo_Dating\Historic\Historic_10.pdf | C12: Journal Of Petrology, 44(3)491–515 | D12: Evolution Beneath the Sangeang Api Volcano | E12: (Turner, 2003, P. ) | F12: Simon | G12: Turner | H12: 2003 | I12: Sangeang Api | J12: Turner, Simon, 2003, Evolution Beneath the Sangeang Api Volcano, Journal Of Petrology, 44(3)491–515
A13: H11 | B13: C:\Essays\Geo_Dating\Historic\Historic_11.pdf | C13: Bulletin Volcanology, 69:259-263 | D13: 40Ar/39Ar ages of the AD 79 eruption of Vesuvius | E13: (Lanphere, 2007, P. ) | F13: Marvin | G13: Lanphere | H13: 2007 | I13: Vesuvius | J13: Lanphere, Marvin, 2007, 40Ar/39Ar ages of the AD 79 eruption of Vesuvius, Bulletin Volcanology, 69:259-263
A14: H12 | B14: C:\Essays\Geo_Dating\Historic\Historic_12.pdf | C14: Geochimica et Cosmochimica Acta 70:3401-3420 | D14: Bicol and Bataan arcs, Philippines | E14: (DuFrane, 2006, P. ) | F14: S. Andrew | G14: DuFrane | H14: 2006 | I14: Pinatubo | J14: DuFrane, S. Andrew , 2006, Bicol and Bataan arcs, Philippines, Geochimica et Cosmochimica Acta 70:3401-3420
A15: H13 | B15: C:\Essays\Geo_Dating\Historic\Historic_13.pdf | C15: Lithos 126 (2011) 198–211 | D15: A Toba-scale eruption in the Early Miocene | E15: (Smyth, 2011, P. ) | F15: Helen R. | G15: Smyth | H15: 2011 | I15: Toba Miocene | J15: Smyth, Helen R., 2011, A Toba-scale eruption in the Early Miocene, Lithos 126 (2011) 198–211
A16: H14 | B16: C:\Essays\Geo_Dating\Historic\Historic_14.pdf | C16: Geochemica Et Cosmochemica Acta, 61(18):3789-3801 | D16: Excess Argon In Melt Inclusions | E16: (Esser, 1997, P. ) | F16: R. P. | G16: Esser | H16: 1997 | I16: Erebus | J16: Esser, R. P., 1997, Excess Argon In Melt Inclusions, Geochemica Et Cosmochemica Acta, 61(18):3789-3801
A17: H15 | B17: C:\Essays\Geo_Dating\Historic\Historic_15.pdf | C17: Journal of Volcanology and Geothermal Research, 177:606-618 | D17: Alkaline magmas from Erebus volcano | E17: (Sims, 2008, P. ) | F17: Kenneth W.W. | G17: Sims | H17: 2008 | I17: Erebus | J17: Sims, Kenneth W.W., 2008, Alkaline magmas from Erebus volcano, Journal of Volcanology and Geothermal Research, 177:606-618
A18: H16 | B18: C:\Essays\Geo_Dating\Historic\Historic_16.pdf | C18: Earth and Planetary Science Letters, 245:743-761 | D18: Comparison of Th, Sr, Nd and Pb isotopes | E18: (Sims, 2006, P. ) | F18: Kenneth W.W. | G18: Sims | H18: 2006 | I18: Erebus | J18: Sims, Kenneth W.W., 2006, Comparison of Th, Sr, Nd and Pb isotopes, Earth and Planetary Science Letters, 245:743-761
A19: H17 | B19: C:\Essays\Geo_Dating\Historic\Historic_17.pdf | C19: Journal Of Geophysical Research, 73(14):4601-4607 | D19: Ultramafic Inclusions from Hawaii | E19: (Funkhouser, 1968, P. ) | F19: John G. | G19: Funkhouser | H19: 1968 | I19: Hualalai | J19: Funkhouser, John G., 1968, Ultramafic Inclusions from Hawaii, Journal Of Geophysical Research, 73(14):4601-4607
A20: H18 | B20: C:\Essays\Geo_Dating\Historic\Historic_18.pdf | C20: Fifth International Conference on Creationism | D20: Recent Andesite Flows at Mt. Ngauruhoe | E20: (Snelling, 2003, P. ) | F20: Andrew | G20: Snelling | H20: 2003 | I20: Ngauruhoe | J20: Snelling, Andrew, 2003, Recent Andesite Flows at Mt. Ngauruhoe, Fifth International Conference on Creationism
A21: H19 | B21: C:\Essays\Geo_Dating\Historic\Historic_19.pdf | C21: Volcanism in Hawaii, 26:723-744 | D21: Origin of the West Maui volcanic rocks | E21: (Tatsumoto, 1987, P. ) | F21: Mitsunobu | G21: Tatsumoto | H21: 1987 | I21: West Maui | J21: Tatsumoto, Mitsunobu, 1987, Origin of the West Maui volcanic rocks, Volcanism in Hawaii, 26:723-744
A22: H20 | B22: C:\Essays\Geo_Dating\Historic\Historic_20.pdf | C22: Lithos, 81:255-277 | D22: Glass-bearing crustal xenoliths | E22: (Salvioli-Mariani, 2005, P. ) | F22: E. | G22: Salvioli-Mariani | H22: 2005 | I22: Stromboli | J22: Salvioli-Mariani, E., 2005, Glass-bearing crustal xenoliths, Lithos, 81:255-277
A23: H21 | B23: C:\Essays\Geo_Dating\Historic\Historic_21.pdf | C23: Journal Of Petrology, 48(12): 2407-2430 | D23: Study of Stromboli Volcano | E23: (Tommasini, 2007, P. ) | F23: Simone | G23: Tommasini | H23: 2007 | I23: Stromboli | J23: Tommasini, Simone, 2007, Study of Stromboli Volcano, Journal Of Petrology, 48(12): 2407-2430
A24: H22 | B24: C:\Essays\Geo_Dating\Historic\Historic_22.pdf | E24: (, , P. ) | J24: , , , ,
A25: H23 | B25: C:\Essays\Geo_Dating\Historic\Historic_23.pdf | C25: Earth and Planetary Science Letters, 303:37–47 | D25: Disequilibria at Volcan Llaima, Chile | E25: (Reubi, 2011, P. ) | F25: O. | G25: Reubi | H25: 2011 | I25: Samoa | J25: Reubi, O., 2011, Disequilibria at Volcan Llaima, Chile, Earth and Planetary Science Letters, 303:37–47
A26: H24 | B26: C:\Essays\Geo_Dating\Historic\Historic_24.pdf | C26: Journal Of Geophysical Research, 108:(B5-2252):1-25 | D26: Transport rates along the Alaska-Aleutian | E26: (George, 2003, P. ) | F26: Rhiannon | G26: George | H26: 2003 | I26: Alaska | J26: George, Rhiannon, 2003, Transport rates along the Alaska-Aleutian, Journal Of Geophysical Research, 108:(B5-2252):1-25
A27: H25 | B27: C:\Essays\Geo_Dating\Historic\Historic_25.pdf | C27: Journal Of Petrology, 37(1):95-115 | D27: Geochemistry of Augustine Volcano | E27: (Johnson, 1996, P. ) | F27: K. E. | G27: Johnson | H27: 1996 | I27: Augustine | J27: Johnson, K. E., 1996, Geochemistry of Augustine Volcano, Journal Of Petrology, 37(1):95-115
A28: H26 | B28: C:\Essays\Geo_Dating\Historic\Historic_26.pdf | C28: http://pubs.usgs.gov/pp/1791/ | D28: The Novarupta-Katmai Eruption of 1912, P. 1-259 | E28: (Hildreth, 2012, P. ) | F28: Wes | G28: Hildreth | H28: 2012 | I28: Novarupta | J28: Hildreth, Wes, 2012, The Novarupta-Katmai Eruption of 1912, P. 1-259, http://pubs.usgs.gov/pp/1791/
A29: H27 | B29: C:\Essays\Geo_Dating\Historic\Historic_27.pdf | C29: Journal Of Petrology, 44(9):1703-1726 | D29: Rhyolite in North American Continental Arcs | E29: (Reagan, 2003, P. ) | F29: M. K. | G29: Reagan | H29: 2003 | I29: Novarupta | J29: Reagan, M. K., 2003, Rhyolite in North American Continental Arcs, Journal Of Petrology, 44(9):1703-1726
A30: H28 | B30: C:\Essays\Geo_Dating\Historic\Historic_28.pdf | C30: Journal Of Petrology, 53(1):27-65 | D30: Eastern Mediterranean K-rich Lavas | E30: (Kirchenbaur, 2012, P. ) | F30: Maria | G30: Kirchenbaur | H30: 2012 | I30: Bulgaria | J30: Kirchenbaur, Maria, 2012, Eastern Mediterranean K-rich Lavas, Journal Of Petrology, 53(1):27-65
A31: H29 | B31: C:\Essays\Geo_Dating\Historic\Historic_29.pdf | C31: Journal Of Petrology, 39(5):859-880 | D31: Jurassic Oceanic Crust beneath Grand Canaria | E31: (Hoernle, 1998, P. ) | F31: Kaj | G31: Hoernle | H31: 1998 | I31: Canary Islands | J31: Hoernle, Kaj, 1998, Jurassic Oceanic Crust beneath Grand Canaria, Journal Of Petrology, 39(5):859-880
A32: H30 | B32: C:\Essays\Geo_Dating\Historic\Historic_30.pdf | C32: PhD Thesis, University of Bremen, http://d-nb.info/1072301873/34 | D32: Evolution of La Palma (Canary Islands) | E32: (Galipp, 2005, P. ) | F32: Karsten | G32: Galipp | H32: 2005 | I32: Canary Islands | J32: Galipp, Karsten, 2005, Evolution of La Palma (Canary Islands), PhD Thesis, University of Bremen, http://d-nb.info/1072301873/34
A33: H31 | B33: C:\Essays\Geo_Dating\Historic\Historic_31.pdf | C33: Journal Of Petrology, 44(3):457-489 | D33: Volcanic rocks from Merapi Volcano | E33: (Gertisser, 2003, P. ) | F33: R. | G33: Gertisser | H33: 2003 | I33: Merapi | J33: Gertisser, R., 2003, Volcanic rocks from Merapi Volcano, Journal Of Petrology, 44(3):457-489
A34: H32 | B34: C:\Essays\Geo_Dating\Historic\Historic_32.pdf | C34: Journal of Volcanology and Geothermal Research 158:281-295 | D34: Crystallization ages of Las Tres Vírgenes | E34: ="(" & G34 & ", " & H34 & ", P. )" -> (Schmitt, 2006, P. ) | F34: Axel K. | G34: Schmitt | H34: 2006 | I34: Las Tres Vírgenes | J34: =G34 & ", " & F34 & ", " & H34 & ", " & D34 & ", " & C34 -> Schmitt, Axel K., 2006, Crystallization ages of Las Tres Vírgenes, Journal of Volcanology and Geothermal Research 158:281-295
A35: H33 | B35: C:\Essays\Geo_Dating\Historic\Historic_33.pdf | C35: Contributions Mineralogy Petrology, 156:103-118 | D35: Melting beneath Niuafo’ou Island | E35: (Regelous, 2008, P. ) | F35: Marcel | G35: Regelous | H35: 2008 | I35: Niuafo’ou Island | J35: Regelous, Marcel, 2008, Melting beneath Niuafo’ou Island, Contributions Mineralogy Petrology, 156:103-118
A36: H34 | B36: C:\Essays\Geo_Dating\Historic\Historic_34.pdf | C36: http://perso.ens-lyon.fr/francis.albarede/JBT_Rev_text.pdf | D36: Isotope evolution of Mauna Kea volcano | E36: (Blichert-Toft, 2002, P. ) | F36: Janne | G36: Blichert-Toft | H36: 2002 | I36: Mauna Loa | J36: Blichert-Toft, Janne, 2002, Isotope evolution of Mauna Kea volcano, http://perso.ens-lyon.fr/francis.albarede/JBT_Rev_text.pdf
A37: H35 | B37: C:\Essays\Geo_Dating\Historic\Historic_35.pdf | C37: Earth and Planetary Science Letters 265:748-765 | D37: The two Réunion Island volcanoes | E37: (Bosch, 2008, P. ) | F37: Delphine | G37: Bosch | H37: 2008 | I37: Réunion Island | J37: Bosch, Delphine, 2008, The two Réunion Island volcanoes, Earth and Planetary Science Letters 265:748-765
A38: H36 | B38: C:\Essays\Geo_Dating\Historic\Historic_36.pdf | C38: Chemical Geology 265:289-302 | D38: Isotopic variations in Ocean Island Basalts | E38: (Millet, 2009, P. ) | F38: Marc-Alban | G38: Millet | H38: 2009 | I38: São Jorge Island | J38: Millet, Marc-Alban, 2009, Isotopic variations in Ocean Island Basalts, Chemical Geology 265:289-302
A39: H37 | B39: C:\Essays\Geo_Dating\Historic\Historic_37.pdf | C39: Journal of Petrology, 50(3):507-529 | D39: Active Caldera, Rabaul, Papua New Guinea | E39: (Cunningham, 2009, P. ) | F39: H. S. | G39: Cunningham | H39: 2009 | I39: Rabaul | J39: Cunningham, H. S., 2009, Active Caldera, Rabaul, Papua New Guinea, Journal of Petrology, 50(3):507-529
A40: H38 | B40: C:\Essays\Geo_Dating\Historic\Historic_38.pdf | C40: Journal Of Petrology, 45(1):203-219 | D40: Two Volcanoes in the Alaska-Aleutian Arc | E40: (George, 2004, P. ) | F40: Rhiannon | G40: George | H40: 2004 | I40: Aleutian Arc | J40: George, Rhiannon, 2004, Two Volcanoes in the Alaska-Aleutian Arc, Journal Of Petrology, 45(1):203-219
A41: H39 | B41: C:\Essays\Geo_Dating\Historic\Historic_39.pdf | C41: Journal Of Petrology, 41(7):961-990 | D41: Puu Oo Eruption of Kilauea Volcano | E41: (Garcia, 2000, P. ) | F41: M. O. | G41: Garcia | H41: 2000 | I41: Kilauea | J41: Garcia, M. O., 2000, Puu Oo Eruption of Kilauea Volcano, Journal Of Petrology, 41(7):961-990
A42: H40 | B42: C:\Essays\Geo_Dating\Historic\Historic_40.pdf | C42: Contributions Mineralogy Petrology, 168(1067):1-28 | D42: Bezymianny and Klyuchevskoy Volcanoes | E42: (Kayzar, 2014, P. ) | F42: Theresa M. | G42: Kayzar | H42: 2014 | I42: Kamchatka | J42: Kayzar, Theresa M., 2014, Bezymianny and Klyuchevskoy Volcanoes, Contributions Mineralogy Petrology, 168(1067):1-28
A43: H41 | B43: C:\Essays\Geo_Dating\Historic\Historic_41.pdf | C43: Contributions Mineralogy Petrology, 142:43-57 | D43: Element Variations in Sunda arc Lavas | E43: (Turner, 2001, P. ) | F43: S. | G43: Turner | H43: 2001 | I43: Sunda Arc | J43: Turner, S., 2001, Element Variations in Sunda arc Lavas, Contributions Mineralogy Petrology, 142:43-57
A44: H42 | B44: C:\Essays\Geo_Dating\Historic\Historic_42.pdf | C44: Proceedings Radiochimica Acta 1:335-338 | D44: Izu arc volcanoes, Japan | E44: (Kurihara, 2011, P. ) | F44: Yuichi | G44: Kurihara | H44: 2011 | I44: Izu Arc | J44: Kurihara, Yuichi, 2011, Izu arc volcanoes, Japan, Proceedings Radiochimica Acta 1:335-338
A45: H43 | B45: C:\Essays\Geo_Dating\Historic\Historic_43.pdf | C45: Chemical Geology 265:272–278 | D45: Contributions to Lesser Antilles magmas | E45: (DuFrane, 2009, P. ) | F45: S. Andy | G45: DuFrane | H45: 2009 | I45: Lesser Antilles | J45: DuFrane, S. Andy, 2009, Contributions to Lesser Antilles magmas, Chemical Geology 265:272–278
A46: H44 | B46: C:\Essays\Geo_Dating\Historic\Historic_44.pdf | C46: Radio Isotopes, 56:795-809 | D46: Volcanic Products from Izu arc volcanoes | E46: (Kurihara, 2007, P. ) | F46: Yuichi | G46: Kurihara | H46: 2007 | I46: Izu Arc | J46: Kurihara, Yuichi, 2007, Volcanic Products from Izu arc volcanoes, Radio Isotopes, 56:795-809
A47: H45 | B47: C:\Essays\Geo_Dating\Historic\Historic_45.pdf | C47: Phd Thesis, San Diego State University | D47: Lavas from the islands of Upolu and Savaii | E47: (Bühler, 2011, P. ) | F47: Alena | G47: Bühler | H47: 2011 | I47: Samoa | J47: Bühler, Alena, 2011, Lavas from the islands of Upolu and Savaii, Phd Thesis, San Diego State University
A48: H46 | B48: C:\Essays\Geo_Dating\Historic\Historic_46.pdf | C48: Journal of Volcanology 184:63-78 | D48: Piton de la Fournaise historical lavas | E48: (Vlastélic, 2009, P. ) | F48: Ivan | G48: Vlastélic | H48: 2009 | I48: Réunion island | J48: Vlastélic, Ivan, 2009, Piton de la Fournaise historical lavas, Journal of Volcanology 184:63-78
A49: H47 | B49: C:\Essays\Geo_Dating\Historic\Historic_47.pdf | C49: Earth and Planetary Science Letters, 175:69-86 | D49: The Kluchevskoy volcano | E49: (Dorendorf, 2000, P. ) | F49: Frank | G49: Dorendorf | H49: 2000 | I49: Kamchatka | J49: Dorendorf, Frank, 2000, The Kluchevskoy volcano, Earth and Planetary Science Letters, 175:69-86
A50: H48 | B50: C:\Essays\Geo_Dating\Historic\Historic_48.pdf | C50: Journal Of Geophysical Research, 117(B05202):1-18 | D50: 2010 Eyjafjallajökull explosive eruption | E50: (Borisova, 2012, P. ) | F50: Anastassia Y. | G50: Borisova | H50: 2012 | I50: Eyjafjallajökull | J50: Borisova, Anastassia Y., 2012, 2010 Eyjafjallajökull explosive eruption, Journal Of Geophysical Research, 117(B05202):1-18
A51: H49 | B51: C:\Essays\Geo_Dating\Historic\Historic_49.pdf | C51: Mineralogy and Petrology, 73:121-143 | D51: (Sr-Nd-Pb) of interplinian magmas | E51: (Somma, 2001, P. ) | F51: R. | G51: Somma | H51: 2001 | I51: Vesuvius | J51: Somma, R., 2001, (Sr-Nd-Pb) of interplinian magmas, Mineralogy and Petrology, 73:121-143
A52: H50 | B52: C:\Essays\Geo_Dating\Historic\Historic_50.pdf | C52: Mineralogy and Petrology, 73:145-176 | D52: Skarns from Vesuvius | E52: (Gilg, 2001, P. ) | F52: H. A. | G52: Gilg | H52: 2001 | I52: Vesuvius | J52: Gilg, H. A., 2001, Skarns from Vesuvius, Mineralogy and Petrology, 73:145-176
A53: H51 | B53: C:\Essays\Geo_Dating\Historic\Historic_51.pdf | C53: Journal Of Petrology, 51(7):1507-1540 | D53: Kaua‘i Lavas over 4.5 million years | E53: (Garcia, 2010, P. ) | F53: M. O. | G53: Garcia | H53: 2010 | I53: Kaua‘i
A54: H53 | B54: C:\Essays\Geo_Dating\Historic\Historic_53.pdf | C54: Geology, 33:897-900 | D54: 1585 eruption on La Palma, Canary Islands | E54: (Johansen, 2005, P. ) | F54: T. S. | G54: Johansen | H54: 2005 | I54: Canary Islands | J54: =G54 & ", " & F54 & ", " & H54 & ", " & D54 & ", " & C54 -> Johansen, T. S., 2005, 1585 eruption on La Palma, Canary Islands , Geology, 33:897-900
A55: H54 | B55: C:\Essays\Geo_Dating\Historic\Historic_54.pdf | C55: http://pubs.usgs.gov/pp/1750/chapters/pp2008-1750_chapter36.pdf | D55: Eruption of Mount St. Helens, 2004–2006 | E55: (Cooper, 2008, P. ) | F55: Kari M. | G55: Cooper | H55: 2008 | I55: Saint Helens | J55: Cooper, Kari M., 2008, Eruption of Mount St. Helens, 2004–2006, http://pubs.usgs.gov/pp/1750/chapters/pp2008-1750_chapter36.pdf
A56: H55 | B56: C:\Essays\Geo_Dating\Historic\Historic_55.pdf | C56: Geochemical Journal, 42:461-479 | D56: 238U–230Th radioactive disequilibrium | E56: (Fukuda, 2008, P. ) | F56: Satoru | G56: Fukuda | H56: 2008 | I56: Izu Arc | J56: Fukuda, Satoru, 2008, 238U–230Th radioactive disequilibrium, Geochemical Journal, 42:461-479
A57: None | B57: None | C57: https://en.wikipedia.org/wiki/Volcanoes_of_east-central_Baja_California | D57: Volcanoes of east-central Baja California, | E57: (Wikipedia, 2015, P. ) | G57: Wikipedia | H57: 2015 | I57: Las Tres Vírgenes | J57: Wikipedia, , 2015, Volcanoes of east-central Baja California,, https://en.wikipedia.org/wiki/Volcanoes_of_east-central_Baja_California
A58: None | B58: None | C58: http://www.bgc.org/isoplot_etc/isoplot/Isoplot3_75-4_15manual.pdf | D58: Isoplot User Manual | E58: (Ludwig, 2010, P. ) | F58: Kenneth | G58: Ludwig | H58: 2010 | I58: None | J58: Ludwig, Kenneth, 2010, Isoplot User Manual, http://www.bgc.org/isoplot_etc/isoplot/Isoplot3_75-4_15manual.pdf
A59: None | B59: None | C59: http://www.bgc.org/isoplot_etc/isoplot/Isoplot3_75files.zip | D59: Isoplot Excel Add In | E59: (Ludwig, 2012, P. ) | F59: Kenneth | G59: Ludwig | H59: 2012 | I59: None | J59: Ludwig, Kenneth, 2012, Isoplot Excel Add In, http://www.bgc.org/isoplot_etc/isoplot/Isoplot3_75files.zip
A60: None | B60: None | C60: http://adsabs.harvard.edu/abs/2006AGUFM.V34B..02K | D60: New 40Ar/39Ar Ages for Savai'i Island | E60: (Koppers, 2006, P. ) | F60: A. A | G60: Koppers | H60: 2006 | I60: Samoa | J60: Koppers, A. A, 2006, New 40Ar/39Ar Ages for Savai'i Island, http://adsabs.harvard.edu/abs/2006AGUFM.V34B..02K
A61: None | B61: None | C61: Chapman And Hall Publishers | D61: Radioactive and Stable Isotope Geology, P. 1-305 | E61: (Attendon, 1997, P. ) | F61: H. G. | G61: Attendon | H61: 1997 | I61: Samoa | J61: Attendon, H. G., 1997, Radioactive and Stable Isotope Geology, P. 1-305, Chapman And Hall Publishers
A62: H56 | B62: C:\Essays\Geo_Dating\Historic\Historic_56.pdf | C62: . | D62: . | E62: (., ., P. ) | F62: . | G62: . | H62: . | I62: . | J62: ., ., ., ., .
A63: H57 | B63: C:\Essays\Geo_Dating\Historic\Historic_57.pdf | C63: . | D63: . | E63: (., ., P. ) | F63: . | G63: . | H63: . | I63: . | J63: ., ., ., ., .

Sheet Erupt
A1: Dated | B1: Eruption | C1: Age (Yr.) | D1: Age (Ma) | E1: Volcano | F1: Reference | G1: Age Ratio 106 | H1: Citation
A2: 2005 | B2: 2003 | C2: =A2-B2 -> 2 | D2: 4970 | E2: Anatahan | F2: Wade | G2: 2485 | H2: ="(" & F2 & ", " & A2 & ")" -> (Wade, 2005)
A3: 1996 | B3: 1986 | C3: =A3-B3 -> 10 | D3: 5076 | E3: Augustine | F3: Johnson | G3: 507 | H3: ="(" & F3 & ", " & A3 & ")" -> (Johnson, 1996)
A4: 2005 | B4: 1949 | C4: 56 | D4: 4920 | E4: Canary Islands | F4: Galipp | G4: 87 | H4: (Galipp, 2005)
A5: 1998 | B5: 1949 | C5: 49 | D5: 5001 | E5: Canary Islands | F5: Hoernle | G5: 100 | H5: (Hoernle, 1998)
A6: 2011 | B6: 1877 | C6: 134 | D6: 4966 | E6: Cotopaxi | F6: Garrison | G6: 37 | H6: (Garrison, 2011)
A7: 1997 | B7: 1984 | C7: 13 | D7: 9 | E7: Erebus | F7: Esser | G7: 1 | H7: (Esser, 1997)
A8: 2006 | B8: 2000 | C8: 6 | D8: 4935 | E8: Erebus | F8: Sims | G8: 823 | H8: (Sims, 2006)
A9: 2008 | B9: 2004 | C9: 4 | D9: 4894 | E9: Erebus | F9: Sims | G9: 1224 | H9: (Sims, 2008)
A10: 1968 | B10: 1800 | C10: 168 | D10: 3300 | E10: Hualalai | F10: Funkhouser | G10: 20 | H10: (Funkhouser, 1968)
A11: 2004 | B11: 1906 | C11: 98 | D11: 4963 | E11: Kanaga | F11: Jicha | G11: 183 | H11: (Jicha, 2004)
A12: 2013 | B12: 1983 | C12: 30 | D12: 4991 | E12: Kilauea | F12: Greene | G12: 166 | H12: (Greene, 2013)
A13: 2008 | B13: 1998 | C13: 10 | D13: 4991 | E13: Kilauea | F13: Marske | G13: 499 | H13: (Marske, 2008)
A14: 1999 | B14: 1790 | C14: 209 | D14: 4981 | E14: Kilauea | F14: Pietruszka | G14: 24 | H14: (Pietruszka, 1999)
A15: 1996 | B15: 1996 | C15: 0.1666 | D15: 4997 | E15: Loihi | F15: Garcia | G15: 30000 | H15: (Garcia, 1996)
A16: 2006 | B16: 1800 | C16: 206 | D16: 4986 | E16: Mayon | F16: DuFrane | G16: 24 | H16: (DuFrane, 2006)
A17: 2003 | B17: 1872 | C17: 131 | D17: 4986 | E17: Merapi | F17: Gertisser | G17: 38 | H17: (Gertisser, 2003)
A18: 2000 | B18: 1949 | C18: 51 | D18: 4974 | E18: Ngauruhoe | F18: Snelling | G18: 98 | H18: (Snelling, 2000)
A19: 2012 | B19: 1912 | C19: 100 | D19: 4967 | E19: Novarupta | F19: Hildreth | G19: 50 | H19: (Hildreth, 2012)
A20: 2003 | B20: 1912 | C20: 91 | D20: 4967 | E20: Novarupta | F20: Reagan | G20: 55 | H20: (Reagan, 2003)
A21: 1999 | B21: 1991 | C21: 8 | D21: 5000 | E21: Pinatubo | F21: Bernard | G21: 625 | H21: (Bernard, 1999)
A22: 1999 | B22: 1991 | C22: 8 | D22: 5000 | E22: Pinatubo | F22: Castillo | G22: 625 | H22: (Castillo, 1999)
A23: 2006 | B23: 1991 | C23: 15 | D23: 5000 | E23: Pinatubo | F23: DuFrane | G23: 333 | H23: (DuFrane, 2006)
A24: 2003 | B24: 1958 | C24: 45 | D24: 4969 | E24: Sangeang Api | F24: Turner | G24: 110 | H24: (Turner, 2003)
A25: 2004 | B25: 1906 | C25: 98 | D25: 4970 | E25: Seguam | F25: Jicha | G25: 51 | H25: (Jicha, 2004)
A26: 2005 | B26: 1944 | C26: 61 | D26: 4965 | E26: Stromboli | F26: Salvioli | G26: 81 | H26: (Salvioli, 2005)
A27: 2006 | B27: 1600 | C27: 406 | D27: 4990 | E27: Taal | F27: DuFrane | G27: 12 | H27: (DuFrane, 2006)
A28: 2008 | B28: 1945 | C28: 63 | D28: 4963 | E28: Réunion Island | F28: Bosch | G28: 79 | H28: (Bosch, 2008)
A29: 2009 | B29: 1808 | C29: 201 | D29: 4899 | E29: São Jorge Island | F29: Millet | G29: 49 | H29: (Millet, 2009)
A30: 2003 | B30: 2001 | C30: 2 | D30: 5045.11663 | E30: Masaya Volcano | F30: Vallelonga | G30: 50 | H30: (Vallelonga, 2003)
A31: 2014 | B31: 2010 | C31: 4 | D31: 5004.508922 | E31: Bezymianny | F31: Kayzar | G31: 1251.127231 | H31: (Kayzar, 2014)
A32: 2014 | B32: 2007 | C32: 7 | D32: 5001.19081 | E32: Klyuchevskoy | F32: Kayzar | G32: 714 | H32: (Kayzar, 2014)
A33: 2014 | B33: 2007 | C33: 7 | D33: 4996.917708 | E33: Shiveluch | F33: Kayzar | G33: 714 | H33: (Kayzar, 2014)
A34: 2014 | B34: 2008 | C34: 6 | D34: 4996.771912 | E34: Karymsky | F34: Kayzar | G34: 832 | H34: (Kayzar, 2014)
A35: 2001 | B35: 1883 | C35: 118 | D35: 4991 | E35: Krakatau | F35: Turner | G35: 42 | H35: (Turner, 2001)
A36: 2001 | B36: 1982 | C36: 19 | D36: 4983 | E36: Galunggung | F36: Turner | G36: 262 | H36: (Turner, 2001)
A37: 2001 | B37: 1006 | C37: 995 | D37: 4984 | E37: Merapi | F37: Turner | G37: 5 | H37: (Turner, 2001)
A38: 2001 | B38: 1900 | C38: 101 | D38: 4985 | E38: Rindjani | F38: Turner | G38: 49 | H38: (Turner, 2001)
A39: 2001 | B39: 1815 | C39: 186 | D39: 4967 | E39: Tambora | F39: Turner | G39: 27 | H39: (Turner, 2001)
A40: 2001 | B40: 1985 | C40: 16 | D40: 4970 | E40: Sangeang Api | F40: Turner | G40: 311 | H40: (Turner, 2001)
A41: 2001 | B41: 1900 | C41: 101 | D41: 4975 | E41: Ayi Flores | F41: Turner | G41: 49 | H41: (Turner, 2001)
A42: 2009 | B42: 1530 | C42: 479 | D42: 4962 | E42: Guadeloupe | F42: DuFrane | G42: 10.35908142 | H42: (DuFrane, 2009)
A43: 2009 | B43: 1995 | C43: 14 | D43: 4979 | E43: Montserrat | F43: DuFrane | G43: 355.6428571 | H43: (DuFrane, 2009)
A44: 2009 | B44: 2007 | C44: 2 | D44: 4965.341886 | E44: Réunion island | F44: Vlastélic | G44: 2482.670943 | H44: (Vlastélic, 2009)
A45: 2001 | B45: 79 | C45: 1922 | D45: 4960.043413 | E45: Mount Vesuvius | F45: Somma | G45: 2.5 | H45: (Somma, 2001)
A46: 2001 | B46: 79 | C46: 1922 | D46: 4960.043413 | E46: Mount Vesuvius | F46: Gilg | G46: 2.5 | H46: (Gilg, 2001)

Sheet Active
A1: Active Volcano Order | B1: Location | E1: Active Volcano | F1: Location Order
A2: Avachinsky-Koryaksky | B2: Russia | E2: Barren Island | F2: India
A3: Cerro Azul | B3: Chile | E3: Mount Erebus | F3: Antarctica
A4: Colima | B4: Mexico | E4: LaPalma | F4: Canary Islands
A5: Chimborazo | B5: Ecuador | E5: Cha | F5: Cape Verde
A6: Cotopaxi | B6: Ecuador | E6: Cerro Azul | F6: Chile
A7: Galeras | B7: Colombia | E7: Galeras | F7: Colombia
A8: Glacier Peak | B8: US (Washington) | E8: Nevado del Ruiz | F8: Colombia
A9: Haleakala | B9: US (Hawaii) | E9: Irazu | F9: Costa Rica
A10: Irazu | B10: Costa Rica | E10: Niragongo | F10: Republic of the Congo
A11: Kelut | B11: Indonesia | E11: Chimborazo | F11: Ecuador
A12: Mount Kilauea | B12: US (Hawaii) | E12: Cotopaxi | F12: Ecuador
A13: Krakatoa | B13: Indonesia | E13: Santorini | F13: Greece
A14: Lō'ihi Seamount | B14: US (Hawaii) | E14: Pacaya | F14: Guatemala
A15: Mount Adams | B15: US (Washington) | E15: Lakagigar | F15: Iceland
A16: Mount Baker | B16: US (Washington) | E16: Kelut | F16: Indonesia
A17: Mount Fuji | B17: Japan | E17: Krakatoa | F17: Indonesia
A18: Mount Hood | B18: US (Oregon) | E18: Mount Merapi | F18: Indonesia
A19: Mount Lassen | B19: US (California) | E19: Mount Slamet | F19: Indonesia
A20: Mount Mayon | B20: Philippines | E20: Sinabung | F20: Indonesia
A21: Mount Merapi | B21: Indonesia | E21: Tambora | F21: Indonesia
A22: Mount Olympus | B22: US (Washington) | E22: Mount Etna | F22: Italy
A23: Mount Pinatubo | B23: Philippines | E23: Stromboli | F23: Italy
A24: Mount Rainier | B24: US (Washington) | E24: Vesuvius | F24: Italy
A25: Mount Slamet | B25: Indonesia | E25: Mount Fuji | F25: Japan
A26: Mount St Helens | B26: US Washington | E26: Sakurajima | F26: Japan
A27: Mauna Kea | B27: US (Hawaii) | E27: Mount Unzen | F27: Japan
A28: Mauna Hualalai | B28: US (Hawaii) | E28: Colima | F28: Mexico
A29: Mauna Loa | B29: US (Hawaii) | E29: Parícutin | F29: Mexico
A30: Nevado del Ruiz | B30: Colombia | E30: Popocatepetl | F30: Mexico
A31: Pacaya | B31: Guatemala | E31: Soufrière Hills | F31: Montserrat
A32: Parícutin | B32: Mexico | E32: Ulawun | F32: Papua New Guinea
A33: Popocatepetl | B33: Mexico | E33: Mount Mayon | F33: Philippines
A34: Redoubt | B34: US (Alaska) | E34: Mount Pinatubo | F34: Philippines
A35: Sakurajima | B35: Japan | E35: Taal | F35: Philippines
A36: Sinabung | B36: Indonesia | E36: Avachinsky-Koryaksky | F36: Russia
A37: Taal | B37: Philippines | E37: Teide | F37: Spain (Canary Islands)
A38: Tambora | B38: Indonesia | E38: Redoubt | F38: US (Alaska)
A39: Ulawun | B39: Papua New Guinea | E39: Mount Lassen | F39: US (California)
A40: Mount Unzen | B40: Japan | E40: Haleakala | F40: US (Hawaii)
A41: Lakagigar | B41: Iceland | E41: Mount Kilauea | F41: US (Hawaii)
A42: LaPalma | B42: Canary Islands | E42: Lō'ihi Seamount | F42: US (Hawaii)
A43: Mount Erebus | B43: Antarctica | E43: Mauna Kea | F43: US (Hawaii)
A44: Mount Etna | B44: Italy | E44: Mauna Hualalai | F44: US (Hawaii)
A45: Niragongo | B45: Democratic Republic of the Congo | E45: Mauna Loa | F45: US (Hawaii)
A46: Santorini | B46: Greece | E46: Mount Hood | F46: US (Oregon)
A47: Soufrière Hills | B47: Montserrat | E47: Glacier Peak | F47: US (Washington)
A48: Stromboli | B48: Italy | E48: Mount Adams | F48: US (Washington)
A49: Teide | B49: Spain (Canary Islands) | E49: Mount Baker | F49: US (Washington)
A50: Vesuvius | B50: Italy | E50: Mount Olympus | F50: US (Washington)
A51: Barren Island | B51: India | E51: Mount Rainier | F51: US (Washington)
A52: Cha | B52: Cape Verde | E52: Mount St Helens | F52: US Washington

Sheet H51
A1: Table 1 | P1: 40Ar/36Ar
A2: Kaloa Volcanics | P2: Age (Ma)
A3: KV03-11 | B3: 3.2 | C3: 1.12 | D3: 312.3 | E3: 0.6 | F3: 0.1868 | G3: 7 | H3: 295 | I3: 2 | J3: 5.3 | K3: 0.8 | L3: 94.5 | M3: 0.15 | N3: 2 | O3: 0.31 | P3: 0.15 | Q3: 0.02
A4: KV03-12 | B4: 3.74 | C4: 1.18 | D4: 331.9 | E4: 0.7 | F4: 0.1869 | G4: 7 | H4: 296 | I4: 2 | J4: 8.3 | K4: 0.6 | L4: 89 | M4: 0.219 | N4: 16 | O4: 0.23 | P4: 0.219 | Q4: 0.016
A5: KV05-2 | B5: 4.37 | C5: 0.88 | D5: 308.3 | E5: 0.6 | F5: 0.1853 | G5: 7 | H5: 291 | I5: 2 | J5: 6.3 | K5: 0.9 | L5: 94.3 | M5: 0.22 | N5: 3 | O5: 0.36 | P5: 0.22 | Q5: 0.03
A6: KV05-3 | B6: 5.84 | C6: 0.92 | D6: 320.1 | E6: 0.6 | F6: 0.1867 | G6: 7 | H6: 295 | I6: 2 | J6: 6.8 | K6: 0.7 | L6: 92.1 | M6: 0.23 | N6: 2 | O6: 0.27 | P6: 0.23 | Q6: 0.02
A7: KV03-6 | B7: 1.49 | C7: 1.25 | D7: 336.8 | E7: 0.8 | F7: 0.1782 | G7: 14 | H7: 295 | I7: 9.1 | J7: 0.2 | K7: 87.7 | L7: 0.227 | M7: 5 | N7: 0.22 | O7: 0.227 | P7: 0.005
A8: KV03-8 | B8: 5.99 | C8: 1.07 | D8: 354.2 | E8: 0.7 | F8: 0.1876 | G8: 9 | H8: 298 | I8: 3 | J8: 11.1 | K8: 0.6 | L8: 84.1 | M8: 0.32 | N8: 2 | O8: 0.2 | P8: 0.32 | Q8: 0.018
A9: KV03-10 | B9: 1.59 | C9: 0.82 | D9: 304.7 | E9: 0.6 | F9: 0.1866 | G9: 9 | H9: 295 | I9: 3 | J9: 8.6 | K9: 2.5 | L9: 96.7 | M9: 0.32 | N9: 9 | O9: 0.84 | P9: 0.32 | Q9: 0.09
A10: KV03-7 | B10: 1.48 | C10: 0.91 | D10: 350.5 | E10: 0.9 | F10: 0.0613 | G10: 23 | H10: 295 | I10: 9.5 | J10: 1.7 | K10: 84.3 | L10: 0.324 | M10: 7 | N10: 0.17 | O10: 0.324 | P10: 0.007
A11: KV05-14 | B11: 5.11 | C11: 1.17 | D11: 403.8 | E11: 0.8 | F11: 0.1874 | G11: 9 | H11: 297 | I11: 3 | J11: 15.8 | K11: 0.5 | L11: 73.5 | M11: 0.419 | N11: 14 | O11: 0.15 | P11: 0.419 | Q11: 0.014
A12: KV03-27 | B12: 2.1 | C12: 0.73 | D12: 325.7 | E12: 0.7 | F12: 0.1873 | G12: 7 | H12: 297 | I12: 2 | J12: 12.2 | K12: 1.1 | L12: 91.1 | M12: 0.52 | N12: 5 | O12: 0.42 | P12: 0.52 | Q12: 0.05
A13: KV05-1 | B13: 3.63 | C13: 1.02 | D13: 374.4 | E13: 0.7 | F13: 0.1856 | G13: 8 | H13: 291 | I13: 3 | J13: 22.2 | K13: 0.8 | L13: 77.9 | M13: 0.68 | N13: 2 | O13: 0.27 | P13: 0.68 | Q13: 0.02
A14: KR-3 | B14: 3.8 | C14: 1.28 | D14: 365.4 | E14: 0.7 | F14: 0.1878 | G14: 8 | H14: 298 | I14: 2 | J14: 28.4 | K14: 1.1 | L14: 81.6 | M14: 0.69 | N14: 3 | O14: 0.42 | P14: 0.69 | Q14: 0.03
A15: KV03-15 | B15: 2.86 | C15: 1.22 | D15: 387.3 | E15: 0.8 | F15: 0.1865 | G15: 7 | H15: 294 | I15: 2 | J15: 37.1 | K15: 1.1 | L15: 76 | M15: 0.94 | N15: 3 | O15: 0.4 | P15: 0.94 | Q15: 0.03
A16: KV03-20 | B16: 0.74 | C16: 1.02 | D16: 411.7 | E16: 0.8 | F16: 0.1876 | G16: 8 | H16: 298 | I16: 2 | J16: 39.3 | K16: 1 | L16: 72.3 | M16: 1.19 | N16: 3 | O16: 0.34 | P16: w.m.
A17: KV03-20 | B17: 2.24 | C17: 1.02 | D17: 461.7 | E17: 0.9 | F17: 0.1862 | G17: 9 | H17: 294 | I17: 3 | J17: 40.8 | K17: 0.9 | L17: 63.6 | M17: 1.24 | N17: 3 | O17: 0.24 | P17: 1.22 | Q17: 0.02
A18: KV04-1 | B18: 1.49 | C18: 0.77 | D18: 339 | E18: 0.7 | F18: 0.1856 | G18: 7 | H18: 291 | I18: 2 | J18: 30.4 | K18: 1.6 | L18: 86 | M18: 1.22 | N18: 7 | O18: 0.64 | P18: 1.22 | Q18: 0.07
A19: KV04-13 | B19: 5.91 | C19: 0.88 | D19: 441.2 | E19: 0.9 | F19: 0.1867 | G19: 7 | H19: 295 | I19: 2 | J19: 34.7 | K19: 0.7 | L19: 66.8 | M19: 1.22 | N19: 3 | O19: 0.24 | P19: 1.22 | Q19: 0.03
A20: KV04-9 | B20: 4.52 | C20: 1.1 | D20: 408.8 | E20: 0.8 | F20: 0.1867 | G20: 7 | H20: 295 | I20: 2 | J20: 45.8 | K20: 1.1 | L20: 72.1 | M20: 1.29 | N20: 3 | O20: 0.4 | P20: 1.29 | Q20: 0.03
A21: KV03-21 | B21: 0.73 | C21: 1.46 | D21: 460.4 | E21: 0.9 | F21: 0.1864 | G21: 7 | H21: 294 | I21: 2 | J21: 65.3 | K21: 1.2 | L21: 63.9 | M21: 1.39 | N21: 3 | O21: 0.39 | P21: w.m.
A22: KV03-21 | B22: 1.5 | C22: 1.46 | D22: 686.8 | E22: 1.5 | F22: 0.1872 | G22: 10 | H22: 296 | I22: 3 | J22: 62.3 | K22: 0.8 | L22: 43.2 | M22: 1.33 | N22: 2 | O22: 0.16 | P22: 1.35 | Q22: 0.02
A23: KV04-8 | B23: 2.26 | C23: 1.01 | D23: 447.4 | E23: 0.9 | F23: 0.1858 | G23: 7 | H23: 292 | I23: 2 | J23: 46.7 | K23: 0.9 | L23: 65.3 | M23: 1.44 | N23: 3 | O23: 0.3 | P23: 1.44 | Q23: 0.03
A24: KV04-3 | B24: 2.94 | C24: 1.11 | D24: 527 | E24: 1.1 | F24: 0.1872 | G24: 7 | H24: 296 | I24: 2 | J24: 52.4 | K24: 0.8 | L24: 56.3 | M24: 1.46 | N24: 3 | O24: 0.23 | P24: 1.46 | Q24: 0.03
A25: KV03-18 | B25: 2.25 | C25: 1.06 | D25: 510.3 | E25: 1 | F25: 0.185 | G25: 7 | H25: 290 | I25: 2 | J25: 50 | K25: 0.8 | L25: 56.8 | M25: 1.46 | N25: 3 | O25: 0.23 | P25: 1.46 | Q25: 0.03
A26: KV03-19 | B26: 2.22 | C26: 0.92 | D26: 548.3 | E26: 1.1 | F26: 0.1854 | G26: 7 | H26: 291 | I26: 2 | J26: 43.6 | K26: 0.6 | L26: 53.1 | M26: 1.47 | N26: 3 | O26: 0.17 | P26: 1.47 | Q26: 0.03
A27: KV04-4 | B27: 2.99 | C27: 1.24 | D27: 638.1 | E27: 1.3 | F27: 0.1871 | G27: 7 | H27: 296 | I27: 2 | J27: 59.7 | K27: 0.7 | L27: 46.4 | M27: 1.49 | N27: 2 | O27: 0.17 | P27: 1.49 | Q27: 0.02
A28: KV03-17 | B28: 2.99 | C28: 1.12 | D28: 544.1 | E28: 1.1 | F28: 0.1851 | G28: 7 | H28: 290 | I28: 2 | J28: 56.1 | K28: 0.8 | L28: 53.3 | M28: 1.55 | N28: 3 | O28: 0.22 | P28: 1.55 | Q28: 0.03
A29: KV05-15 | B29: 0.63 | C29: 1.65 | D29: 416.1 | E29: 0.8 | F29: 0.1887 | G29: 10 | H29: 301 | I29: 3 | J29: 84 | K29: 3 | L29: 72.4 | M29: 1.57 | N29: 5 | O29: 0.73 | P29: 1.57 | Q29: 0.05
A30: KR-2 | B30: 2.99 | C30: 0.5 | D30: 339.4 | E30: 0.7 | F30: 0.1879 | G30: 8 | H30: 299 | I30: 2 | J30: 27.2 | K30: 1.7 | L30: 88 | M30: 1.68 | N30: 11 | O30: 0.67 | P30: w.m.
A31: KR-2 | B31: 1.5 | C31: 0.5 | D31: 332.8 | E31: 0.7 | F31: 0.1874 | G31: 7 | H31: 297 | I31: 2 | J31: 27 | K31: 1.9 | L31: 89.2 | M31: 1.66 | N31: 12 | O31: 0.75 | P31: 1.67 | Q31: 0.08
A32: 0301-4 | B32: 3 | C32: 1.71 | D32: 563.3 | E32: 1.1 | F32: 0.1877 | G32: 8 | H32: 298 | I32: 2 | J32: 96.4 | K32: 1.3 | L32: 52.9 | M32: 1.75 | N32: 3 | O32: 0.36 | P32: 1.75 | Q32: 0.03
A33: KV03-1 | B33: 1.22 | C33: 1.58 | D33: 346.2 | E33: 0.7 | F33: 0.187 | G33: 7 | H33: 296 | I33: 2 | J33: 90 | K33: 5 | L33: 85.4 | M33: 1.76 | N33: 9 | O33: 1.78 | P33: w.m.
A34: KV03-1 | B34: 1.51 | C34: 1.58 | D34: 347 | E34: 0.7 | F34: 0.1865 | G34: 7 | H34: 294 | I34: 2 | J34: 95 | K34: 5 | L34: 84.8 | M34: 1.85 | N34: 9 | O34: 1.79 | P34: 1.81 | Q34: 0.07
A35: PV-2 | B35: 4.36 | C35: 0.96 | D35: 666.5 | E35: 1.3 | F35: 0.186 | G35: 9 | H35: 293 | I35: 3 | J35: 56.5 | K35: 0.7 | L35: 43.9 | M35: 1.83 | N35: 3 | O35: 0.15 | P35: 1.83 | Q35: 0.03
A36: KV03-4 | B36: 3.15 | C36: 1.81 | D36: 511.8 | E36: 1 | F36: 0.187 | G36: 7 | H36: 296 | I36: 2 | J36: 106.7 | K36: 1.6 | L36: 57.8 | M36: 1.83 | N36: 3 | O36: 0.49 | P36: 1.83 | Q36: 0.03
A37: KV03-3 | B37: 1.5 | C37: 1.59 | D37: 375.7 | E37: 0.8 | F37: 0.1864 | G37: 7 | H37: 294 | I37: 2 | J37: 97 | K37: 3 | L37: 78.2 | M37: 1.89 | N37: 6 | O37: 1.19 | P37: w.m.
A38: KV03-3 | B38: 1.29 | C38: 1.59 | D38: 374.4 | E38: 0.7 | F38: 0.1871 | G38: 7 | H38: 296 | I38: 2 | J38: 90 | K38: 3 | L38: 79.1 | M38: 1.76 | N38: 6 | O38: 1.16 | P38: 1.83 | Q38: 0.04
A39: KV04-10 | B39: 3.67 | C39: 0.96 | D39: 472.9 | E39: 0.9 | F39: 0.1877 | G39: 8 | H39: 298 | I39: 2 | J39: 61 | K39: 1.1 | L39: 63 | M39: 1.97 | N39: 4 | O39: 0.35 | P39: 1.97 | Q39: 0.04
A40: KV03-2 | B40: 1.2 | C40: 1.41 | D40: 359.5 | E40: 0.7 | F40: 0.1874 | G40: 7 | H40: 297 | I40: 2 | J40: 87 | K40: 4 | L40: 82.6 | M40: 1.92 | N40: 8 | O40: 1.4 | P40: w.m.
A41: KV03-2 | B41: 1.48 | C41: 1.41 | D41: 355.1 | E41: 0.7 | F41: 0.1864 | G41: 7 | H41: 294 | I41: 2 | J41: 94 | K41: 4 | L41: 82.8 | M41: 2.06 | N41: 9 | O41: 1.53 | P41: 1.99 | Q41: 0.06
A42: KV05-16 | B42: 2.8 | C42: 1.08 | D42: 528.2 | E42: 1.1 | F42: 0.1877 | G42: 8 | H42: 298 | I42: 2 | J42: 73.3 | K42: 1.1 | L42: 56.4 | M42: 2.1 | N42: 4 | O42: 0.32 | P42: 2.1 | Q42: 0.04
A43: KV05-8 | B43: 4.41 | C43: 1.16 | D43: 796.2 | E43: 1.6 | F43: 0.1866 | G43: 7 | H43: 294 | I43: 2 | J43: 86.1 | K43: 1 | L43: 37 | M43: 2.3 | N43: 3 | O43: 0.17 | P43: 2.3 | Q43: 0.03
A44: 0301-1 | B44: 2.24 | C44: 1.2 | D44: 507.3 | E44: 1 | F44: 0.1871 | G44: 7 | H44: 296 | I44: 2 | J44: 94.5 | K44: 1.5 | L44: 58.4 | M44: 2.44 | N44: 5 | O44: 0.45 | P44: 2.44 | Q44: 0.05
A45: KV04-6 | B45: 2.25 | C45: 0.98 | D45: 833.6 | E45: 1.7 | F45: 0.1883 | G45: 10 | H45: 300 | I45: 3 | J45: 79.8 | K45: 0.9 | L45: 35.9 | M45: 2.52 | N45: 4 | O45: 0.15 | P45: 2.52 | Q45: 0.04
A46: Post-shield
A47: KV05-13 | B47: 2.13 | C47: 1.42 | D47: 768.7 | E47: 1.5 | F47: 0.1863 | G47: 7 | H47: 294 | I47: 2 | J47: 163.6 | K47: 1.9 | L47: 38.2 | M47: 3.58 | N47: 5 | O47: 0.34 | P47: 3.58 | Q47: 0.05
A48: KV03-5 | B48: 2.92 | C48: 1.1 | D48: 756.4 | E48: 3 | F48: 0.1859 | G48: 7 | H48: 292 | I48: 2 | J48: 136.4 | K48: 1.6 | L48: 38.7 | M48: 3.85 | N48: 66 | O48: 0.29 | P48: 3.85 | Q48: 0.06
A49: KV05-10 | B49: 2.92 | C49: 0.92 | D49: 860.3 | E49: 1.7 | F49: 0.1874 | G49: 8 | H49: 297 | I49: 3 | J49: 116.2 | K49: 1.3 | L49: 34.5 | M49: 3.92 | N49: 6 | O49: 0.21 | P49: 3.92 | Q49: 0.06
A50: Haupu Tunnel
A51: KV04-16 | B51: 0.76 | C51: 0.58 | D51: 346.6 | E51: 0.7 | F51: 0.1883 | G51: 8 | H51: 300 | I51: 2 | J51: 82 | K51: 5 | L51: 86.5 | M51: 4.38 | N51: 2 | O51: 1.75 | P51: w.m.
A52: KV04-16 | B52: 0.64 | C52: 0.58 | D52: 347.4 | E52: 0.7 | F52: 0.1881 | G52: 8 | H52: 299 | I52: 2 | J52: 80 | K52: 4 | L52: 86.1 | M52: 4.26 | N52: 2 | O52: 1.65 | P52: 4.31 | Q52: 0.17
A53: KV04-17 | B53: 0.64 | C53: 0.36 | D53: 336.3 | E53: 0.7 | F53: 0.1858 | G53: 7 | H53: 292 | I53: 2 | J53: 51 | K53: 3 | L53: 86.9 | M53: 4.36 | N53: 3 | O53: 1.15 | P53: w.m.
A54: KV04-17 | B54: 1.41 | C54: 0.36 | D54: 336.7 | E54: 0.7 | F54: 0.186 | G54: 7 | H54: 293 | I54: 2 | J54: 51 | K54: 3 | L54: 86.9 | M54: 4.36 | N54: 3 | O54: 1.16 | P54: 4.36 | Q54: 0.18
A55: KV04-19 | B55: 0.64 | C55: 0.49 | D55: 367.7 | E55: 0.7 | F55: 0.1853 | G55: 7 | H55: 291 | I55: 2 | J55: 71 | K55: 2 | L55: 79 | M55: 4.52 | N55: 16 | O55: 0.92 | P55: w.m.
A56: KV04-19 | B56: 1.43 | C56: 0.49 | D56: 372 | E56: 0.7 | F56: 0.1867 | G56: 7 | H56: 295 | I56: 2 | J56: 64 | K56: 2 | L56: 79.3 | M56: 4.11 | N56: 15 | O56: 0.84 | P56: 4.3 | Q56: 0.11
A57: KV04-24 | B57: 0.69 | C57: 0.33 | D57: 322.8 | E57: 0.6 | F57: 0.1855 | G57: 7 | H57: 291 | I57: 2 | J57: 46 | K57: 4 | L57: 90.2 | M57: 4.3 | N57: 35 | O57: 1.46 | P57: w.m.
A58: KV04-24 | B58: 0.7 | C58: 0.33 | D58: 323.6 | E58: 0.6 | F58: 0.185 | G58: 8 | H58: 290 | I58: 3 | J58: 50 | K58: 4 | L58: 89.5 | M58: 4.64 | N58: 36 | O58: 1.47 | P58: 4.46 | Q58: 0.25
A59: Other Shield
A60: KV05-7 | B60: 2.89 | C60: 0.41 | D60: 395.2 | E60: 0.8 | F60: 0.1867 | G60: 7 | H60: 295 | I60: 2 | J60: 58.1 | K60: 1.6 | L60: 74.6 | M60: 4.35 | N60: 13 | O60: 0.58 | P60: 4.35 | Q60: 0.13
A61: KV05-17 | B61: 1.36 | C61: 0.43 | D61: 345.8 | E61: 0.7 | F61: 0.1873 | G61: 7 | H61: 297 | I61: 2 | J61: 62 | K61: 3 | L61: 85.8 | M61: 4.43 | N61: 24 | O61: 1.27 | P61: 4.43 | Q61: 0.24
A62: KV05-9 | B62: 4.35 | C62: 0.35 | D62: 595.2 | E62: 1.2 | F62: 0.185 | G62: 11 | H62: 290 | I62: 4 | J62: 52 | K62: 8 | L62: 48.7 | M62: 4.57 | N62: 8 | O62: 0.17 | P62: 4.57 | Q62: 0.08
A64: Table 4
A65: 206Pb/204Pb | C65: 207Pb/204Pb | E65: 208Pb/204Pb | G65: 87Sr/86Sr | I65: 143Nd/144Nd | K65: eNd | L65: 178Hf/177Hf | N65: eHf | O65: 207Pb/206Pb | P65: Age (Ma)
A66: Volcanics
A67: 18.1361 | B67: 21 | C67: 15.4474 | D67: 20 | E67: 37.7857 | F67: 54 | G67: 0.703201 | H67: 7 | I67: 0.513066 | J67: 6 | K67: 8.25 | L67: — | M67: — | N67: — | O67: =C67/A67 -> 0.8517487222 | P67: =[1]!AgePb76(O67) -> 5010.831062
A68: 18.1402 | B68: 9 | C68: 15.4517 | D68: 13 | E68: 37.7957 | F68: 47 | G68: 0.703209 | H68: 6 | I68: 0.513065 | J68: 7 | K68: 8.23 | L68: — | M68: — | N68: — | O68: =C68/A68 -> 0.8517932548 | P68: =[1]!AgePb76(O68) -> 5010.905231
A69: 18.0895 | B69: 11 | C69: 15.4316 | D69: 10 | E69: 37.7794 | F69: 27 | G69: 0.703165 | H69: 5 | I69: 0.513048 | J69: 5 | K69: 8 | L69: — | M69: — | N69: — | O69: 0.8530694602 | P69: =[1]!AgePb76(O69) -> 5013.02901
A70: 18.1373 | B70: 7 | C70: 15.4356 | D70: 6 | E70: 37.784 | F70: 17 | G70: 0.703165 | H70: 8 | I70: 0.513049 | J70: 8 | K70: 8.02 | L70: — | M70: — | N70: — | O70: 0.8510417758 | P70: =[1]!AgePb76(O70) -> 5009.653087
A71: 18.1754 | B71: 23 | C71: 15.4552 | D71: 21 | E71: 37.8472 | F71: 51 | G71: 0.703156 | H71: 7 | I71: 0.513044 | J71: 7 | K71: 7.92 | L71: 0.283149 | M71: 11 | N71: 13.34 | O71: 0.8503361687 | P71: =[1]!AgePb76(O71) -> 5008.476306
A72: 18.213 | B72: 6 | C72: 15.4509 | D72: 5 | E72: 37.8613 | F72: 15 | G72: 0.703162 | H72: 6 | I72: 0.513055 | J72: 6 | K72: 8.13 | L72: — | M72: — | N72: — | O72: 0.848344589 | P72: =[1]!AgePb76(O72) -> 5005.149236
A73: 18.2423 | B73: 14 | C73: 15.4546 | D73: 13 | E73: 37.9105 | F73: 36 | G73: 0.703176 | H73: 7 | I73: 0.513048 | J73: 7 | K73: 8 | L73: — | M73: — | N73: — | O73: 0.8471848396 | P73: =[1]!AgePb76(O73) -> 5003.20797
A74: 18.1402 | B74: 15 | C74: 15.4426 | D74: 14 | E74: 37.767 | F74: 40 | G74: 0.70307 | H74: 6 | I74: 0.513087 | J74: 6 | K74: 8.76 | L74: — | M74: — | N74: — | O74: 0.8512916065 | P74: =[1]!AgePb76(O74) -> 5010.069495
A75: 18.1404 | B75: 8 | C75: 15.4386 | D75: 7 | E75: 37.7642 | F75: 19 | G75: 0.703008 | H75: 6 | I75: 0.513072 | J75: 6 | K75: 8.47 | L75: 0.283165 | M75: 6 | N75: 13.9 | O75: 0.8510617186 | P75: =[1]!AgePb76(O75) -> 5009.686331
A76: 18.2239 | B76: 7 | C76: 15.4486 | D76: 7 | E76: 37.8731 | F76: 21 | G76: 0.703055 | H76: 6 | I76: 0.513059 | J76: 6 | K76: 8.21 | L76: — | M76: — | N76: — | O76: 0.847710973 | P76: =[1]!AgePb76(O76) -> 5004.088997
A77: 18.3206 | B77: 16 | C77: 15.4603 | D77: 15 | E77: 38.0253 | F77: 33 | G77: 0.70313 | H77: 7 | I77: 0.513016 | J77: 7 | K77: 7.37 | L77: — | M77: — | N77: — | O77: 0.8438752006 | P77: =[1]!AgePb76(O77) -> 4997.652517
A78: 18.2932 | B78: 7 | C78: 15.4539 | D78: 6 | E78: 37.9961 | F78: 16 | G78: 0.703243 | H78: 5 | I78: 0.513025 | J78: 5 | K78: 7.55 | L78: — | M78: — | N78: — | O78: 0.8447893206 | P78: =[1]!AgePb76(O78) -> 4999.18924
A79: 18.1984 | B79: 8 | C79: 15.4483 | D79: 9 | E79: 37.8518 | F79: 23 | G79: 0.702959 | H79: 8 | I79: 0.513077 | J79: 8 | K79: 8.56 | L79: — | M79: — | N79: — | O79: 0.8488823193 | P79: =[1]!AgePb76(O79) -> 5006.048368
A80: 18.2023 | B80: 8 | C80: 15.4405 | D80: 7 | E80: 37.9104 | F80: 19 | G80: 0.703248 | H80: 6 | I80: 0.513019 | J80: 6 | K80: 7.43 | L80: — | M80: — | N80: — | O80: 0.8482719217 | P80: =[1]!AgePb76(O80) -> 5005.027683
A81: 18.5714 | B81: 49 | C81: 15.4848 | D81: 45 | E81: 38.3315 | F81: 109 | G81: 0.703113 | H81: 7 | I81: 0.513012 | J81: 7 | K81: 7.29 | L81: — | M81: — | N81: — | O81: 0.8337982058 | P81: =[1]!AgePb76(O81) -> 4980.593973
A82: 18.6136 | B82: 17 | C82: 15.4771 | D82: 15 | E82: 38.3757 | F82: 44 | G82: 0.703092 | H82: 8 | I82: 0.513022 | J82: 6 | K82: 7.48 | L82: 0.283083 | M82: 7 | N82: 10.99 | O82: 0.8314941763 | P82: =[1]!AgePb76(O82) -> 4976.662893
A83: 18.6044 | B83: 17 | C83: 15.4777 | D83: 18 | E83: 38.3575 | F83: 42 | G83: — | H83: — | I83: — | O83: 0.8319376062 | P83: =[1]!AgePb76(O83) -> 4977.420361
P84: =[1]!AgePb76(O84) -> 
A85: 18.1989 | B85: 8 | C85: 15.4537 | D85: 6 | E85: 37.8285 | F85: 16 | G85: 0.703221 | H85: 6 | I85: 0.513054 | J85: 6 | K85: 8.11 | L85: — | M85: — | N85: — | O85: 0.8491557182 | P85: =[1]!AgePb76(O85) -> 5006.505283
A86: 18.1198 | B86: 19 | C86: 15.4432 | D86: 13 | E86: 37.738 | F86: 30 | G86: 0.703168 | H86: 8 | I86: 0.513064 | J86: 6 | K86: 8.31 | L86: 0.283189 | M86: 5 | N86: 14.76 | O86: 0.8522831378 | P86: =[1]!AgePb76(O86) -> 5011.720862
A87: 18.329 | B87: 6 | C87: 15.4697 | D87: 5 | E87: 37.9403 | F87: 14 | G87: 0.703421 | H87: 7 | I87: 0.513034 | J87: 9 | K87: 7.72 | L87: 0.283134 | M87: 6 | N87: 12.81 | O87: 0.8440013094 | P87: =[1]!AgePb76(O87) -> 4997.864623
A88: 18.1848 | B88: 5 | C88: 15.4512 | D88: 5 | E88: 37.9735 | F88: 13 | G88: 0.703721 | H88: 8 | I88: 0.512937 | J88: 3 | K88: 5.82 | L88: 0.283072 | M88: 5 | N88: 10.61 | O88: 0.849676653 | P88: =[1]!AgePb76(O88) -> 5007.375458
A89: 18.1794 | B89: 7 | C89: 15.4481 | D89: 7 | E89: 37.9005 | F89: 18 | G89: 0.703697 | H89: 7 | I89: 0.512963 | J89: 7 | K89: 6.35 | L89: 0.283087 | M89: 4 | N89: 11.15 | O89: 0.8497585179 | P89: =[1]!AgePb76(O89) -> 5007.512154
A90: 18.1791 | B90: 8 | C90: 15.4488 | D90: 8 | E90: 37.9017 | F90: 16 | G90: — | H90: — | I90: — | J90: — | K90: — | L90: — | M90: — | N90: — | O90: 0.8498110468 | P90: =[1]!AgePb76(O90) -> 5007.599858
A91: 18.1859 | B91: 7 | C91: 15.4568 | D91: 5 | E91: 37.7986 | F91: 17 | G91: 0.703183 | H91: 8 | I91: 0.513069 | J91: 6 | K91: 8.4 | L91: 0.283177 | M91: 5 | N91: 14.33 | O91: 0.84993319 | P91: =[1]!AgePb76(O91) -> 5007.803771
P92: =[1]!AgePb76(O92) -> 
A93: 18.1116 | B93: 4 | C93: 15.4478 | D93: 4 | E93: 37.8834 | F93: 11 | G93: 0.703771 | H93: 9 | I93: 0.512944 | J93: 8 | K93: 5.96 | L93: 0.283072 | M93: 6 | N93: 10.6 | O93: 0.8529229886 | P93: =[1]!AgePb76(O93) -> 5012.785433
A94: 18.2133 | B94: 6 | C94: 15.4555 | D94: 6 | E94: 37.9697 | F94: 16 | G94: 0.703745 | H94: 7 | I94: 0.51297 | J94: 8 | K94: 6.47 | L94: 0.283088 | M94: 11 | N94: 11.17 | O94: 0.8485831782 | P94: =[1]!AgePb76(O94) -> 5005.548253
A95: 18.1857 | B95: 7 | C95: 15.454 | D95: 8 | E95: 37.9563 | F95: 19 | G95: 0.703758 | H95: 7 | I95: 0.512946 | J95: 7 | K95: 6 | L95: 0.283069 | M95: 6 | N95: 10.5 | O95: 0.8497885701 | P95: =[1]!AgePb76(O95) -> 5007.562331
A96: 18.1855 | B96: 5 | C96: 15.4542 | D96: 4 | E96: 37.9565 | F96: 14 | G96: 0.703745 | H96: 7 | I96: 0.512952 | J96: 7 | K96: 6.12 | L96: 0.283077 | M96: 7 | N96: 10.8 | O96: 0.8498089137 | P96: =[1]!AgePb76(O96) -> 5007.596297
A97: 18.0861 | B97: 10 | C97: 15.4453 | D97: 8 | E97: 37.925 | F97: 22 | G97: 0.70383 | H97: 10 | I97: 0.512897 | J97: 7 | K97: 5.05 | L97: 0.283063 | M97: 6 | N97: 10.3 | O97: 0.8539873162 | P97: =[1]!AgePb76(O97) -> 5014.554362
A98: 18.0855 | B98: 5 | C98: 15.4446 | D98: 5 | E98: 37.9244 | F98: 13 | G98: — | H98: — | I98: — | J98: — | K98: — | L98: — | M98: — | N98: — | O98: 0.8539769429 | P98: =[1]!AgePb76(O98) -> 5014.537132
A99: 18.6451 | B99: 6 | C99: 15.4878 | D99: 4 | E99: 38.2018 | F99: 23 | G99: 0.70346 | H99: 10 | I99: 0.513005 | J99: 7 | K99: 7.16 | L99: 0.283099 | M99: 4 | N99: 11.57 | O99: 0.8306632842 | P99: =[1]!AgePb76(O99) -> 4975.242404
A102: Sample | B102: Age (Ma) | C102: Age (Ma) | D102: Age Ratio
A103: Number | B103: 207Pb/206Pb | C103: 40Ar/36Ar | D103: 106
A104: 0301-1 | B104: 5005.027683 | C104: 2.44 | D104: =B104/C104 -> 2051.240854
A105: KR-11 | B105: 4980.593973 | C105: 0.15 | D105: =B105/C105 -> 33203.95982
A106: KV03-15 | B106: 5008.476306 | C106: 0.94 | D106: 5328.166283
A107: KV03-17 | B107: 5009.686331 | C107: 1.55 | D107: 3232.055698
A108: KV03-21 | B108: 5003.20797 | C108: 1.35 | D108: 3706.079978
A109: KV03-5 | B109: 5011.720862 | C109: 3.85 | D109: 1301.745678
A110: KV04-1 | B110: 5005.149236 | C110: 1.22 | D110: 4102.581341
A111: KV04-16 | B111: 5007.562331 | C111: 4.31 | D111: 1161.847409
A112: KV04-16 | B112: 5007.596297 | C112: 4.31 | D112: 1161.855289
A113: KV04-19 | B113: 5005.548253 | C113: 4.3 | D113: 1164.080989
A114: KV04-4 | B114: 5010.069495 | C114: 1.49 | D114: 3362.462748
A115: KV05-1 | B115: 5009.653087 | C115: 0.68 | D115: 7367.136892
A116: KV05-10 | B116: 5007.803771 | C116: 3.92 | D116: 1277.500962
A117: KV05-13 | B117: 5006.505283 | C117: 3.58 | D117: 1398.465163
A118: KV05-2 | B118: 5013.02901 | C118: 0.22 | D118: 22786.4955
A119: KV05-8 | B119: 5006.048368 | C119: 2.3 | D119: 2176.542769
A120: PV-2 | B120: 4999.18924 | C120: 1.83 | D120: 2731.797399

Sheet H53
A1: Table DR2. | C1: 1585 AD Eruption
A2: Sample | C2: Rock type | D2: 87Sr/86Sr | E2: 2σ | F2: 143Nd/144Nd | G2: 2σ | H2: 206Pb/204Pb | I2: 2σ | J2: 207Pb/204Pb | K2: 2σ | L2: 208Pb/204Pb | M2: 2σ | N2: 207Pb/206Pb | O2: Pb Age (Ma) | P2: Eruption | Q2: True Age | R2: Age Ratio 106 | S2: Dated
A3: TLP | B3: 50-2 | C3: basanite | D3: 0.703082 | E3: 3e-06 | F3: 0.512898 | G3: 8e-06 | H3: 19.644 | I3: 0.018 | J3: 15.591 | K3: 0.002 | L3: 39.415 | M3: 0.028 | N3: =J3/H3 -> 0.7936774588 | O3: =[1]!AgePb76(N3) -> 4910.432879 | P3: 1585 | Q3: =S3-P3 -> 420 | R3: =O3/Q3 -> 11.69150685 | S3: 2005
A4: TLP | B4: 51-3 | C4: tephrite | D4: 0.703076 | E4: 6e-06 | F4: 0.512897 | G4: 8e-06 | H4: 19.653 | I4: 0.001 | J4: 15.592 | K4: 0.002 | L4: 39.426 | M4: 0.008 | N4: =J4/H4 -> 0.7933648807 | O4: =[1]!AgePb76(N4) -> 4909.871556 | P4: 1585 | Q4: =S4-P4 -> 420 | R4: =O4/Q4 -> 11.69017037 | S4: 2005
A5: TLP | B5: 50-1 | C5: phonolite | D5: 0.703095 | E5: 3e-06 | F5: 0.512892 | G5: 7e-06 | H5: 19.655 | I5: 0.008 | J5: 15.594 | K5: 0.001 | L5: 39.448 | M5: 0.011 | N5: 0.7933859069 | O5: =[1]!AgePb76(N5) -> 4909.909322 | P5: 1585 | Q5: 420 | R5: 11.69026029 | S5: 2005
A6: TLP | B6: 51-2 | C6: phonolite | D6: 0.703099 | E6: 3e-06 | F6: 0.512893 | G6: 4e-06 | H6: 19.66 | I6: 0.006 | J6: 15.599 | K6: 0.001 | L6: 39.468 | M6: 0.008 | N6: 0.7934384537 | O6: =[1]!AgePb76(N6) -> 4910.003698 | P6: 1585 | Q6: 420 | R6: 11.690485 | S6: 2005
A9: Sample | B9: Rock type | D9: (238U/232Th) | E9: 2σ | F9: (230Th/232Th) | G9: 2σ | H9: (230Th/238U) | I9: 2σ | J9: (226Ra/230Th) | K9: 2σ
A10: TLP | B10: 93-1 | C10: basanite | D10: 0.806 | E10: 0.006 | F10: 1.131 | G10: 0.023 | H10: 1.402 | I10: 0.039 | J10: 1.435 | K10: 0.028
A11: TLP | B11: 50-2 | C11: basanite | D11: 0.845 | E11: 0.005 | F11: 1.128 | G11: 0.02 | H11: 1.335 | I11: 0.021 | J11: 1.462 | K11: 0.023
A12: TLP | B12: 51-3 | C12: tephrite | D12: 0.857 | E12: 0.007 | F12: 1.111 | G12: 0.025 | H12: 1.296 | I12: 0.02 | J12: 1.377 | K12: 0.02
A13: TLP | B13: 105-1 | C13: tephrite | D13: 0.866 | E13: 0.008 | F13: 1.119 | G13: 0.015 | H13: 1.293 | I13: 0.016 | J13: 1.404 | K13: 0.003
A14: TLP | B14: 51-1 | C14: tephriphonolite | D14: 0.97 | E14: 0.011 | F14: 1.125 | G14: 0.02 | H14: 1.159 | I14: 0.009 | J14: 1.475 | K14: 0.003
A15: TLP | B15: 47-1 | C15: phonolite | D15: 0.967 | E15: 0.006 | F15: 1.123 | G15: 0.017 | H15: 1.159 | I15: 0.015 | J15: 1.483 | K15: 0.019
A16: TLP | B16: 50-3 | C16: phonolite | D16: 0.979 | E16: 0.003 | F16: 1.127 | G16: 0.007 | H16: 1.152 | I16: 0.011 | J16: 1.52 | K16: 0.021
A17: TLP | B17: 50-5 | C17: phonolite | D17: 0.978 | E17: 0.001 | F17: 1.125 | G17: 0.019 | H17: 1.15 | I17: 0.021 | J17: 1.536 | K17: 0.024
A18: TLP | B18: 50-1 | C18: phonolite | D18: 0.99 | E18: 0.003 | F18: 1.125 | G18: 0.002 | H18: 1.136 | I18: 0.001 | J18: 1.541 | K18: 0.022
A19: TLP | B19: 51-2 | C19: phonolite | D19: 0.964 | E19: 0.011 | F19: 1.119 | G19: 0.022 | H19: 1.16 | I19: 0.01 | J19: 1.535 | K19: 0.022
A20: TLP | B20: 47-1 | C20: Ttitanite | D20: 0.447 | E20: 0.002 | F20: 1.117 | G20: 0.01 | H20: 2.502 | I20: 0.022 | J20: 0.141 | K20: 0.004
A21: TLP | B21: 50-3 | C21: Titanite | D21: 0.45 | E21: 0.002 | F21: 1.116 | G21: 0.01 | H21: 2.481 | I21: 0.022 | J21: 0.121 | K21: 0.004
A24: Sample | B24: Rock Type | D24: Th(ppm) | E24: U(ppm) | F24: Th/U | G24: (238U/232Th) | H24: 2σ | I24: (230Th/232Th) | J24: 2σ | K24: (230Th/238U) | L24: 2σ | M24: (226Ra/230Th) | N24: 2σ
A25: TLP | B25: 50-2 | C25: basanite | D25: 7.75 | E25: 2.15 | F25: 3.6 | G25: 0.842 | H25: 0.003 | I25: 1.123 | J25: 0.01 | K25: 1.333 | L25: 0.012
A26: TLP | B26: 50-2 | D26: 7.73 | E26: 2.16 | F26: 3.58 | G26: 0.847 | H26: 0.004 | I26: 1.14 | J26: 0.012 | K26: 1.346 | L26: 0.015 | M26: 1.462 | N26: 0.023
A27: TLP | B27: 50-2 | D27: 7.66 | E27: 2.14 | F27: 3.58 | G27: 0.846 | H27: 0.004 | I27: 1.121 | J27: 0.011 | K27: 1.325 | L27: 0.013 | M27: 1.474 | N27: 0.019
A28: TLP | B28: 93-1 | C28: basanite | D28: 7.57 | E28: 2.02 | F28: 3.75 | G28: 0.808 | H28: 0.003 | I28: 1.122 | J28: 0.01 | K28: 1.389 | L28: 0.012 | M28: 1.445 | N28: 0.037
A29: TLP | B29: 93-1 | D29: 7.56 | E29: 2 | F29: 3.77 | G29: 0.804 | H29: 0.004 | I29: 1.139 | J29: 0.013 | K29: 1.416 | L29: 0.018 | M29: 1.425 | N29: 0.022
A30: TLP | B30: 51-3 | C30: tephrite | D30: 11.98 | E30: 3.37 | F30: 3.55 | G30: 0.854 | H30: 0.005 | I30: 1.098 | J30: 0.011 | K30: 1.286 | L30: 0.014
A31: TLP | B31: 51-3 | D31: 11.71 | E31: 3.3 | F31: 3.54 | G31: 0.856 | H31: 0.006 | I31: 1.111 | J31: 0.01 | K31: 1.297 | L31: 0.014 | M31: 1.377 | N31: 0.02
A32: TLP | B32: 51-3 | D32: 11.73 | E32: 3.33 | F32: 3.53 | G32: 0.86 | H32: 0.004 | I32: 1.124 | J32: 0.008 | K32: 1.306 | L32: 0.01 | M32: 1.383 | N32: 0.04
A33: TLP | B33: 105-1 | C33: tephrite | D33: 12.13 | E33: 3.47 | F33: 3.49 | G33: 0.868 | H33: 0.004 | I33: 1.115 | J33: 0.016 | K33: 1.284 | L33: 0.019
A34: TLP | B34: 105-1 | D34: 12.74 | E34: 3.65 | F34: 3.5 | G34: 0.868 | H34: 0.003 | I34: 1.119 | J34: 0.01 | K34: 1.289 | L34: 0.012 | M34: 1.405 | N34: 0.022
A35: TLP | B35: 105-1 | D35: 12.5 | E35: 3.57 | F35: 3.5 | G35: 0.867 | H35: 0.006 | I35: 1.129 | J35: 0.018 | K35: 1.303 | L35: 0.022 | M35: 1.403 | N35: 0.029
A36: TLP | B36: 105-1 | D36: 11.99 | E36: 3.4 | F36: 3.53 | G36: 0.86 | H36: 0.005 | I36: 1.113 | J36: 0.011 | K36: 1.294 | L36: 0.014
A37: TLP | B37: 51-1 | C37: tephriphonolite | D37: 19.51 | E37: 6.21 | F37: 3.14 | G37: 0.966 | H37: 0.005 | I37: 1.116 | J37: 0.012 | K37: 1.156 | L37: 0.013 | M37: 1.474 | N37: 0.031
A38: TLP | B38: 51-1 | D38: 19.28 | E38: 6.19 | F38: 3.12 | G38: 0.974 | H38: 0.006 | I38: 1.132 | J38: 0.011 | K38: 1.163 | L38: 0.013 | M38: 1.476 | N38: 0.021
A39: TLP | B39: 47-1 | C39: phonolite | D39: 23.01 | E39: 7.32 | F39: 3.14 | G39: 0.965 | H39: 0.004 | I39: 1.118 | J39: 0.01 | K39: 1.159 | L39: 0.01
A40: TLP | B40: 47-1 | D40: 22.98 | E40: 7.35 | F40: 3.13 | G40: 0.97 | H40: 0.003 | I40: 1.116 | J40: 0.011 | K40: 1.15 | L40: 0.011
A41: TLP | B41: 47-1 | D41: 22.6 | E41: 7.21 | F41: 3.13 | G41: 0.968 | H41: 0.004 | I41: 1.131 | J41: 0.012 | K41: 1.168 | L41: 0.013 | M41: 1.483 | N41: 0.019
A42: TLP | B42: 47-1 | D42: 23.48 | E42: 7.46 | F42: 3.15 | G42: 0.964 | H42: 0.004 | I42: 1.115 | J42: 0.011 | K42: 1.156 | L42: 0.012
A43: TLP | B43: 50-1 | C43: phonolite | D43: 21.02 | E43: 6.85 | F43: 3.07 | G43: 0.989 | H43: 0.004 | I43: 1.124 | J43: 0.015 | K43: 1.137 | L43: 0.016
A44: TLP | B44: 50-1 | D44: 21.22 | E44: 6.87 | F44: 3.09 | G44: 0.983 | H44: 0.005 | I44: 1.105 | J44: 0.012 | K44: 1.125 | L44: 0.013 | M44: 1.541 | N44: 0.022
A45: TLP | B45: 50-1 | D45: 21.08 | E45: 6.88 | F45: 3.06 | G45: 0.991 | H45: 0.005 | I45: 1.125 | J45: 0.019 | K45: 1.136 | L45: 0.019 | M45: 1.508 | N45: 0.029
A46: TLP | B46: 50-3 | C46: phonolite | D46: 23.08 | E46: 7.44 | F46: 3.1 | G46: 0.978 | H46: 0.004 | I46: 1.13 | J46: 0.012 | K46: 1.156 | L46: 0.012
A47: TLP | B47: 50-3 | D47: 22.15 | E47: 1.11 | F47: 0.015 | G47: 1.529 | H47: 0.032
A48: TLP | B48: 50-3 | D48: 22.53 | E48: 7.28 | F48: 3.1 | G48: 0.98 | H48: 0.004 | I48: 1.125 | J48: 0.013 | K48: 1.148 | L48: 0.014 | M48: 1.52 | N48: 0.021
A49: TLP | B49: 50-5 | C49: phonolite | D49: 22.9 | E49: 7.38 | F49: 3.1 | G49: 0.978 | H49: 0.004 | I49: 1.132 | J49: 0.011 | K49: 1.157 | L49: 0.011
A50: TLP | B50: 50-5 | D50: 23.43 | E50: 7.55 | F50: 3.1 | G50: 0.978 | H50: 0.003 | I50: 1.118 | J50: 0.01 | K50: 1.143 | L50: 0.01 | M50: 1.536 | N50: 0.024
A51: TLP | B51: 51-2 | C51: phonolite | D51: 21.3 | E51: 6.74 | F51: 3.16 | G51: 0.96 | H51: 0.005 | I51: 1.111 | J51: 0.009 | K51: 1.157 | L51: 0.01
A52: TLP | B52: 51-2 | D52: 21.3 | E52: 6.79 | F52: 3.14 | G52: 0.968 | H52: 0.006 | I52: 1.127 | J52: 0.008 | K52: 1.164 | L52: 0.01 | M52: 1.535 | N52: 0.022

Sheet H54
A1: Table 1. | F1: 234U/238U | J1: 238U/232Th | L1: 230Th/238U | P1: Age (Ka)
A2: 1980–1986 samples | R2: Eruption | S2: 230Th Age (Ka) | T2: True Age | U2: Age Ratio | V2: Year Dated | W2: True Age
A3: SH52 | B3: 1980 | D3: -- | E3: -- | F3: 2.049 | G3: 0.911 | H3: 7.01 | I3: -- | J3: 1.353 | K3: 1.301 | L3: 0.962 | M3: -- | N3: -- | O3: -- | P3: =[1]!Th230Age(L3, F3) -> 64.87464235 | R3: 1980 | S3: 64.87464235 | T3: 28 | U3: =(S3 * 1000)/W3 -> 2316.951512 | V3: 2008 | W3: =V3-R3 -> 28
A4: SH131 | B4: 1982 | D4: -- | E4: -- | F4: 1.974 | G4: 0.885 | H4: 7.002 | I4: -- | J4: 1.364 | K4: 1.3 | L4: 0.953 | M4: -- | N4: -- | O4: -- | P4: =[1]!Th230Age(L4, F4) -> 67.41542669 | R4: 1982 | S4: 67.41542669 | T4: 26 | U4: =(S4 * 1000)/W4 -> 2592.901027 | V4: 2008 | W4: =V4-R4 -> 26
A5: SH157 | B5: 1984 | D5: -- | E5: -- | F5: 2.39 | G5: 1.063 | H5: 6.928 | I5: -- | J5: 1.353 | K5: 1.286 | L5: 0.95 | M5: -- | N5: -- | O5: -- | P5: =[1]!Th230Age(L5, F5) -> 52.27185741 | R5: 1984 | S5: 52.27185741 | T5: 24 | U5: 2177.994059 | V5: 2008 | W5: 24
A6: SH226 | B6: 1986 | D6: -- | E6: -- | F6: 2.496 | G6: 1.084 | H6: 6.752 | I6: -- | J6: 1.322 | K6: 1.253 | L6: 0.948 | M6: -- | N6: -- | O6: -- | P6: =[1]!Th230Age(L6, F6) -> 49.38700168 | R6: 1986 | S6: 49.38700168 | T6: 22 | U6: 2244.863713 | V6: 2008 | W6: 22
A7: 2004–2005 samples | P7: =[1]!Th230Age(L7, F7) -> 0 | R7: 2004 | S7: 46.63711527 | T7: 4 | U7: 11659.27882 | V7: 2008 | W7: 4
A8: SH304-2A1 WR#1 | B8: 10/18/2004 | C8: 338.6 | D8: 555.01 | E8: 0.61 | F8: 2.685 | G8: 1.162 | H8: 6.906 | I8: 1.002 | J8: 1.317 | K8: 1.282 | L8: 0.974 | M8: 1.454 | N8: 1301 | O8: 1892 | P8: =[1]!Th230Age(L8, F8) -> 46.63711527 | R8: 2004 | S8: 45.94602664 | T8: 4 | U8: 11486.50666 | V8: 2008 | W8: 4
A9: SH304-2A1 WR #2 | B9: 10/18/2004 | C9: 332.2 | D9: 575.12 | E9: 2.4 | F9: 2.598 | G9: 1.166 | H9: 6.839 | I9: 1.002 | J9: 1.366 | K9: 1.27 | L9: 0.93 | M9: 1.572 | N9: 1271 | O9: 1998 | P9: =[1]!Th230Age(L9, F9) -> 45.94602664 | R9: 2004 | S9: 0 | T9: 4 | U9: 0 | V9: 2008 | W9: 4
A10: SH304-2A1 Pl#1 | B10: 10/18/2004 | C10: 117.9 | D10: 30.11 | E10: 1.6 | F10: 0.175 | G10: 0.028 | H10: 5.529 | I10: 1.004 | J10: 0.492 | K10: 1.026 | L10: 2.087 | M10: 1.514 | N10: 195 | O10: 295 | P10: =[1]!Th230Age(L10, F10) -> 0 | R10: 2004 | S10: 47.38897861 | T10: 4 | U10: 11847.24465 | V10: 2008 | W10: 4
A11: SH304-2A1 Pl #2 | B11: 10/18/2004 | C11: 116.4 | D11: -- | E11: -- | F11: -- | G11: 0.029 | H11: 5.528 | I11: 1.001 | J11: -- | K11: 1.026 | L11: -- | M11: -- | N11: -- | O11: -- | R11: 2004 | S11: 0 | T11: 4 | U11: 0 | V11: 2008 | W11: 4
A12: SH304-2A8 WR | B12: 10/18/2004 | C12: 327.8 | D12: -- | E12: -- | F12: 2.581 | G12: 1.134 | H12: 6.826 | I12: 1.001 | J12: 1.337 | K12: 1.267 | L12: 0.948 | M12: -- | N12: 1277 | O12: -- | P12: =[1]!Th230Age(L12, F12) -> 47.38897861 | R12: 2004 | S12: 49.58365667 | T12: 4 | U12: 12395.91417 | V12: 2008 | W12: 4
A13: SH304-2A8 Pl | B13: 10/18/2004 | C13: 118.1 | D13: -- | E13: -- | F13: 0.198 | G13: 0.052 | H13: 6.015 | I13: 1.001 | J13: 0.795 | K13: 1.117 | L13: 1.404 | M13: -- | N13: 240 | O13: -- | P13: =[1]!Th230Age(L13, F13) -> 0 | R13: 2004 | S13: 0 | T13: 4 | U13: 0 | V13: 2008 | W13: 4
A14: SH305-1 WR | B14: 11/20/2004 | C14: 330.9 | D14: 521.21 | E14: 1.8 | F14: 2.585 | G14: 1.131 | H14: -- | I14: 1.005 | J14: -- | K14: -- | L14: -- | M14: -- | N14: -- | O14: -- | R14: 2004 | S14: 58.1164056 | T14: 4 | U14: 14529.1014 | V14: 2008 | W14: 4
A15: SH305-1 WR | B15: 11/20/2004 | E15: -- | F15: 2.465 | G15: 1.083 | H15: 6.77 | I15: -- | J15: 1.338 | K15: 1.257 | L15: 0.939 | M15: 1.5174 | N15: 1198 | O15: 1818 | P15: =[1]!Th230Age(L15, F15) -> 49.58365667 | R15: 2004 | S15: 97.00005099 | T15: 4 | U15: 24250.01275 | V15: 2008 | W15: 4
A16: SH305-1 Pl | B16: 11/20/2004 | C16: 113.4 | D16: 79.81 | E16: 1.3 | F16: 0.531 | G16: 0.204 | H16: 7.034 | I16: 1.005 | J16: 1.169 | K16: 1.306 | L16: 1.117 | M16: 1.039 | N16: 782 | O16: 813 | P16: =[1]!Th230Age(L16, F16) -> 0 | R16: 2005 | S16: 59.33509454 | T16: 3 | U16: 19778.36485 | V16: 2008 | W16: 3
A17: SH306 | B17: 12/15/2004 | C17: 329.6 | D17: 538.02 | E17: 0.43 | F17: 2.464 | G17: 0.965 | H17: 6.8543 | I17: 1.002 | J17: 1.191 | K17: 1.272 | L17: 1.068 | M17: 1.547 | N17: 1218 | O17: 1884 | P17: =[1]!Th230Age(L17, F17) -> 58.1164056 | R17: 2005 | S17: 52.38072783 | T17: 3 | U17: 17460.24261 | V17: 2008 | W17: 3
A18: SH307-2A gouge | B18: 12/15/2004 | C18: 315.9 | D18: 514.02 | E18: 1.4 | F18: 2.065 | G18: 0.663 | H18: 6.836 | I18: 1.003 | J18: 0.977 | K18: 1.269 | L18: 1.299 | M18: 1.768 | N18: 1062 | O18: 1878 | P18: =[1]!Th230Age(L18, F18) -> 97.00005099 | R18: 2005 | S18: 51.51947058 | T18: 3 | U18: 17173.15686 | V18: 2008 | W18: 3
A19: SH307-2A gouge | B19: 12/15/2004 | C19: 332.6 | D19: -- | E19: -- | F19: 2.137 | G19: 0.693 | H19: -- | I19: -- | J19: 0.987 | K19: -- | L19: -- | M19: -- | N19: -- | O19: -- | R19: 2005 | S19: 53.71410925 | T19: 3 | U19: 17904.70308 | V19: 2008 | W19: 3
A20: SH311-1B WR | B20: 01/16/2005 | C20: 327.9 | D20: 496.31 | E20: 2.4 | F20: 2.504 | G20: 0.953 | H20: 6.888 | I20: 1.007 | J20: 1.159 | K20: 1.279 | L20: 1.104 | M20: 1.397 | N20: 1250 | O20: 1747 | P20: =[1]!Th230Age(L20, F20) -> 59.33509454 | R20: 2005 | S20: 108.1424503 | T20: 3 | U20: 36047.48342 | V20: 2008 | W20: 3
A21: MSH05DRS WR | B21: 2005-08-03 | C21: 326.9 | D21: 515.02 | E21: 1.1 | F21: 2.513 | G21: 1.036 | H21: 6.776 | I21: 1.004 | J21: 1.255 | K21: 1.258 | L21: 1.002 | M21: 1.469 | N21: 1238 | O21: 1818 | P21: =[1]!Th230Age(L21, F21) -> 52.38072783
A22: SH316-1A WR | B22: 04/15/2005 | C22: 331.5 | D22: 505.72 | E22: 0.44 | F22: 2.544 | G22: 1.061 | H22: 6.842 | I22: 1.002 | J22: 1.269 | K22: 1.27 | L22: 1.001 | M22: 1.411 | N22: 1248 | O22: 1761 | P22: =[1]!Th230Age(L22, F22) -> 51.51947058
A23: SH317-1A WR | B23: 2005-01-05 | C23: 331.5 | D23: 520.22 | E23: 0.49 | F23: 2.504 | G23: 1.023 | H23: 6.83 | I23: 1 | J23: 1.244 | K23: 1.268 | L23: 1.019 | M23: 1.477 | N23: 1226 | O23: 1811 | P23: =[1]!Th230Age(L23, F23) -> 53.71410925
A24: SH320-1 gouge | B24: 2005-01-05 | C24: 283.2 | D24: 406.02 | E24: 1.2 | F24: 1.783 | G24: 0.625 | H24: 6.849 | I24: 1 | J24: 1.066 | K24: 1.271 | L24: 1.193 | M24: 1.615 | N24: 1025 | O24: 1655 | P24: =[1]!Th230Age(L24, F24) -> 108.1424503

Sheet H55
A1: Table 1
A2: Volcano | B2: Fuji | C2: Fuji | D2: Fuji | E2: Fuji | F2: Miyakejima | G2: Miyakejima | H2: Miyakejima | I2: Miyakejima | J2: Miyakejima | K2: Miyakejima | M2: =[1]!Th230Age(A3, B3) -> 
A3: Sample | B3: JB3 | C3: SJ77 | D3: SJ70 | E3: Ho-IV | F3: KSL | G3: TYL | H3: 1469 | I3: 1643 | J3: 1763 | K3: 1874 | M3: A3=230Th/238U
A4: Eruption | B4: 864 | C4: 937 | D4: 1033 | E4: 1707 | F4: 2200 | G4: 2050 | H4: 1469 | I4: 1643 | J4: 1763 | K4: 1874 | M4: B3=234U/238U
A5: (238U/230Th) | B5: 1.052 | C5: 1.051 | D5: 1.022 | E5: 1.086 | F5: 1.326 | G5: 1.271 | H5: 1.267 | I5: 1.311 | J5: 1.285 | K5: 1.302
A6: Error ± (2σ) | B6: 0.024 | C6: 0.009 | D6: 0.006 | E6: 0.004 | F6: 0.008 | G6: 0.008 | H6: 0.008 | I6: 0.018 | J6: 0.018 | K6: 0.029
A7: (234U/238U) | B7: 1.003 | D7: 1.003 | E7: 1.003 | F7: 1.004 | H7: 1.003 | I7: 1.005 | K7: 1.004
A8: Error ± (2σ) | B8: 0.005 | D8: 0.005 | E8: 0.005 | F8: 0.005 | H8: 0.005 | I8: 0.005 | K8: 0.005
A9: (230Th/238U) | B9: =1/B5 -> 0.9505703422 | C9: =1/C5 -> 0.9514747859 | D9: 0.9784735812 | E9: 0.9208103131 | F9: 0.754147813 | G9: 0.7867820614 | H9: 0.7892659826 | I9: 0.7627765065 | J9: 0.7782101167 | K9: 0.7680491551
A10: Age (Ka) | B10: =[1]!Th230Age(B9, B7) -> 319.0523408 | C10: . | D10: =[1]!Th230Age(D9, D7) -> 398.9331914 | E10: =[1]!Th230Age(E9, E7) -> 270.9985501 | F10: =[1]!Th230Age(F9, F7) -> 151.0138694 | G10: . | H10: =[1]!Th230Age(H9, H7) -> 167.8849196 | I10: =[1]!Th230Age(I9, I7) -> 154.4138245 | J10: . | K10: =[1]!Th230Age(K9, K7) -> 157.211051
A13: Volcano | B13: Miyakejima | C13: Miyakejima | D13: Miyakejima | E13: Miyakejima | F13: Miyakejima | G13: Miyakejima | H13: Miyakejima | I13: Miyakejima | J13: Miyakejima | K13: Miyakejima
A14: Eruption | B14: 1962 | C14: 1983 | D14: 1983 | E14: 1983 | F14: 2000 | G14: 2000 | H14: 2000 | I14: 2000 | J14: 2000 | K14: 2000
A15: (238U/230Th) | B15: 1.284 | C15: 1.31 | D15: 1.33 | E15: 1.297 | F15: 1.285 | G15: 1.339 | H15: 1.286 | I15: 1.359 | J15: 1.35 | K15: 1.296
A16: Error ± (2σ) | B16: 0.05 | C16: 0.026 | D16: 0.052 | E16: 0.027 | F16: 0.054 | G16: 0.013 | H16: 0.015 | I16: 0.016 | J16: 0.015 | K16: 0.007
A17: (234U/238U) | B17: 1 | D17: 0.992 | I17: 1.006
A18: Error ± (2σ) | B18: 0.005 | D18: 0.008 | I18: 0.006
A19: (230Th/238U) | B19: =1/B15 -> 0.7788161994 | C19: =1/C15 -> 0.7633587786 | D19: 0.7518796992 | E19: 0.7710100231 | F19: 0.7782101167 | G19: 0.7468259895 | H19: 0.7776049767 | I19: 0.7358351729 | J19: 0.7407407407 | K19: 0.7716049383
A20: Age (Ka) | B20: =[1]!Th230Age(B19, B17) -> 164.0805031 | C20: . | D20: =[1]!Th230Age(D19, D17) -> 154.8053188 | E20: . | F20: . | G20: . | H20: . | I20: =[1]!Th230Age(I19, I17) -> 142.6593519 | J20: . | K20: .
A23: Volcano | B23: Miyakejima | C23: Miyakejima | D23: Oshima | E23: Oshima | F23: Oshima | G23: Oshima | H23: Oshima | I23: Niijima | J23: Teishi Knoll
A24: Eruption | B24: 2000 | C24: 2000 | D24: 1950 | E24: 1550 | F24: 1335 | G24: 1778 | H24: 1778 | I24: 2000 | J24: 1989
A25: (238U/230Th) | B25: 1.307 | C25: 1.288 | D25: 1.552 | E25: 1.558 | F25: 1.42 | G25: 1.502 | H25: 1.402 | I25: 1.134 | J25: 1.095
A26: Error ± (2σ) | B26: 0.021 | C26: 0.021 | D26: 0.056 | E26: 0.025 | F26: 0.006 | G26: 0.057 | H26: 0.053 | I26: 0.027 | J26: 0.014
A27: (234U/238U) | B27: 1.012 | C27: 1.012 | D27: 1.004 | E27: 1.024 | H27: 1.003 | I27: 1.003 | J27: 1.002
A28: Error ± (2σ) | B28: 0.005 | C28: 0.005 | D28: 0.005 | E28: 0.005 | H28: 0.005 | I28: 0.008 | J28: 0.005
A29: (230Th/238U) | B29: =1/B25 -> 0.7651109411 | C29: =1/C25 -> 0.7763975155 | D29: 0.6443298969 | E29: 0.6418485237 | F29: 0.7042253521 | G29: 0.6657789614 | H29: 0.7132667618 | I29: 0.8818342152 | J29: 0.9132420091
A30: Age (Ka) | B30: =[1]!Th230Age(B29, B27) -> 152.6634867 | C30: =[1]!Th230Age(C29, C27) -> 157.6825203 | D30: =[1]!Th230Age(D29, D27) -> 111.5277776 | E30: =[1]!Th230Age(E29, E27) -> 106.598964 | F30: . | G30: . | H30: =[1]!Th230Age(H29, H27) -> 134.9096905 | I30: =[1]!Th230Age(I29, I27) -> 229.2374334 | J30: =[1]!Th230Age(J29, J27) -> 262.9538274
A32: Volcano | B32: Eruption AD | C32: 230Th Age (Ka) | D32: True Age | E32: Age Ratio | F32: Year Dated
A33: Fuji | B33: 864 | C33: 319.05 | D33: =F33-B33 -> 1144 | E33: =(C33*1000)/D33 -> 278.8898601 | F33: 2008
B34: 1033 | C34: 398.93 | D34: =F34-B34 -> 975 | E34: =(C34*1000)/D34 -> 409.1589744 | F34: 2008
B35: 1707 | C35: 271 | D35: 301 | E35: 900.3322259 | F35: 2008
A36: Miyakejima | B36: 1469 | C36: 167.88 | D36: 539 | E36: 311.4656772 | F36: 2008
B37: 1643 | C37: 154.41 | D37: 365 | E37: 423.0410959 | F37: 2008
B38: 1874 | C38: 157.21 | D38: 134 | E38: 1173.208955 | F38: 2008
B39: 1962 | C39: 164.08 | D39: 46 | E39: 3566.956522 | F39: 2008
B40: 1983 | C40: 154.81 | D40: 25 | E40: 6192.4 | F40: 2008
B41: 2000 | C41: 142.66 | D41: 8 | E41: 17832.5 | F41: 2008
B42: 2000 | C42: 152.66 | D42: 8 | E42: 19082.5 | F42: 2008
B43: 2000 | C43: 157.68 | D43: 8 | E43: 19710 | F43: 2008
A44: Oshima | B44: 1950 | C44: 111.53 | D44: 58 | E44: 1922.931034 | F44: 2008
B45: 1550 | C45: 106.6 | D45: 458 | E45: 232.7510917 | F45: 2008
B46: 1778 | C46: 134.91 | D46: 230 | E46: 586.5652174 | F46: 2008
A47: Teishi Knoll | B47: 1989 | C47: 262.95 | D47: 19 | E47: 13839.47368 | F47: 2008
C48: =COUNT(C33:C47) -> 15

Sheet H56
A1: Table 5.
A2: Sample | B2: [Th](ppm) | C2: [U](ppm) | D2: Th/U | E2: 238U/232Th | F2: 230Th/232Th | G2: 234U/238U | H2: 230Th/238U | I2: [226Ra](fg/g) | J2: 226Ra/230Th | K2: Age (Ka)
A3: 3974-1 | B3: 0.1418 | C3: 0.0583 | D3: 2.433 | E3: 1.247 | F3: 1.437 | G3: 1.001 | H3: 1.148 | I3: 50.29 | J3: 2.217 | K3: =[1]!Th230Age(H3, G3) -> 0
B4: 0.1416 | C4: 0.0585 | D4: 2.423 | E4: 1.252 | F4: 1.431 | H4: 1.14 | K4: =[1]!Th230Age(H4, G4) -> 0
A5: 3974-2 | B5: 0.1311 | C5: 0.0536 | D5: 2.445 | E5: 1.241 | F5: 1.401 | G5: 0.999 | H5: 1.13 | I5: 45.91 | J5: 2.238 | K5: =[1]!Th230Age(H5, G5) -> 0
B6: 0.1314 | C6: 0.0537 | D6: 2.452 | E6: 1.237 | K6: =[1]!Th230Age(H6, G6) -> 0
A7: 3974-3 | B7: 0.176 | C7: 0.0686 | D7: 2.565 | E7: 1.183 | F7: 1.34 | G7: 1.001 | H7: 1.132 | I7: 56.56 | J7: 2.176 | K7: =[1]!Th230Age(H7, G7) -> 0
B8: 0.174 | C8: 0.0679 | D8: 2.568 | E8: 1.181 | K8: =[1]!Th230Age(H8, G8) -> 0
A9: 3974-4 | B9: 0.1753 | C9: 0.0686 | D9: 2.555 | E9: 1.187 | F9: 1.343 | G9: 0.999 | H9: 1.136 | I9: 57.14 | J9: 2.197 | K9: =[1]!Th230Age(H9, G9) -> 0
B10: 0.1738 | C10: 0.0677 | D10: 2.572 | E10: 1.179 | K10: =[1]!Th230Age(H10, G10) -> 0
A11: 3974-5 | B11: 0.2472 | C11: 0.0916 | D11: 2.7 | E11: 1.124 | F11: 1.314 | G11: 1 | H11: 1.171 | I11: 69.76 | J11: 1.93 | K11: =[1]!Th230Age(H11, G11) -> 0
B12: 0.2468 | C12: 0.0913 | D12: 2.709 | E12: 1.12 | K12: =[1]!Th230Age(H12, G12) -> 0
A13: 3974-6 | B13: 0.2454 | C13: 0.0907 | D13: 2.704 | E13: 1.122 | F13: 1.309 | G13: 1.001 | H13: 1.164 | I13: 68.22 | J13: 1.913 | K13: =[1]!Th230Age(H13, G13) -> 0
B14: 0.2444 | C14: 0.0906 | D14: 2.703 | E14: 1.123 | K14: =[1]!Th230Age(H14, G14) -> 0
A15: 3974-7 | B15: 0.225 | C15: 0.084 | D15: 2.678 | E15: 1.133 | F15: 1.305 | G15: 1.003 | H15: 1.161 | I15: 63.23 | J15: 1.921 | K15: =[1]!Th230Age(H15, G15) -> 0
B16: 0.2263 | C16: 0.0839 | D16: 2.704 | E16: 1.122 | K16: =[1]!Th230Age(H16, G16) -> 0
A17: 3974-8 | B17: 0.2257 | C17: 0.0842 | D17: 2.681 | E17: 1.132 | F17: 1.3 | G17: 1.002 | H17: 1.147 | I17: 60.75 | J17: 1.859 | K17: =[1]!Th230Age(H17, G17) -> 0
B18: 0.2255 | C18: 0.0842 | D18: 2.682 | E18: 1.131 | K18: =[1]!Th230Age(H18, G18) -> 0
A19: 3974-9 | B19: 0.2253 | C19: 0.0841 | D19: 2.681 | E19: 1.132 | F19: 1.297 | G19: 1.003 | H19: 1.147 | I19: 63.81 | J19: 1.96 | K19: =[1]!Th230Age(H19, G19) -> 0
B20: 0.2253 | C20: 0.0839 | D20: 2.689 | E20: 1.128 | K20: =[1]!Th230Age(H20, G20) -> 0
A21: 3974-10 | B21: 0.1629 | C21: 0.0638 | D21: 2.553 | E21: 1.188 | F21: 1.352 | G21: 1.004 | H21: 1.15 | I21: 55.27 | J21: 2.24 | K21: =[1]!Th230Age(H21, G21) -> 0
B22: 0.1638 | C22: 0.0634 | D22: 2.587 | E22: 1.173 | K22: =[1]!Th230Age(H22, G22) -> 0
A23: 3974-11 | B23: 0.142 | C23: 0.0564 | D23: 2.523 | E23: 1.203 | F23: 1.371 | G23: 1.003 | H23: 1.138 | I23: 52.83 | J23: 2.435 | K23: =[1]!Th230Age(H23, G23) -> 0
A24: 3963-5 | B24: 0.2084 | C24: 0.079 | D24: 2.638 | E24: 1.15 | F24: 1.342 | G24: 1.004 | H24: 1.165 | I24: 52.69 | J24: 1.693 | K24: =[1]!Th230Age(H24, G24) -> 0
A25: 3963-6 | B25: 0.1535 | C25: 0.0623 | D25: 2.462 | E25: 1.232 | F25: 1.385 | G25: 1.003 | H25: 1.122 | I25: 28.59 | J25: 1.209 | K25: =[1]!Th230Age(H25, G25) -> 0
A26: 3963-9 | B26: 0.0931 | C26: 0.0377 | D26: 2.474 | E26: 1.226 | F26: 1.394 | G26: 1.003 | H26: 1.134 | I26: 39.36 | J26: 2.726 | K26: =[1]!Th230Age(H26, G26) -> 0
A27: 3963-10 | B27: 0.1075 | C27: 0.0437 | D27: 2.459 | E27: 1.234 | F27: 1.41 | G27: 1.001 | H27: 1.141 | I27: 45.56 | J27: 2.704 | K27: =[1]!Th230Age(H27, G27) -> 0
A28: 4202-4 | B28: 0.1249 | C28: 0.0515 | D28: 2.43 | E28: 1.249 | F28: 1.398 | G28: 1 | H28: 1.118 | I28: 46.72 | J28: 2.405 | K28: =[1]!Th230Age(H28, G28) -> 0
A29: 4202-4d | B29: 0.1253 | C29: 0.0519 | D29: 2.413 | E29: 1.257 | K29: =[1]!Th230Age(H29, G29) -> 0
A30: 4202-4i | B30: 0.1261 | C30: 0.0519 | D30: 2.429 | E30: 1.249 | F30: 1.387 | G30: 1.003 | K30: =[1]!Th230Age(H30, G30) -> -5.678130175e-15
A31: 4202-4i | B31: 0.0509 | G31: 0.997 | H31: 1.11 | K31: =[1]!Th230Age(H31, G31) -> 0
A32: 4202-6 | B32: 0.1233 | C32: 0.0512 | D32: 2.412 | E32: 1.258 | F32: 1.396 | G32: 1.001 | H32: 1.108 | I32: 47.44 | J32: 2.478 | K32: =[1]!Th230Age(H32, G32) -> 0
A33: 4202-6d | B33: 0.1232 | C33: 0.0509 | D33: 2.421 | E33: 1.26 | G33: 1 | K33: =[1]!Th230Age(H33, G33) -> -2.486822834e-16
A34: 4202-6i | B34: 0.1469 | C34: 0.0589 | D34: 2.495 | E34: 1.216 | F34: 1.353 | G34: 1.003 | H34: 1.112 | K34: =[1]!Th230Age(H34, G34) -> 0
A35: 4202-6i | B35: 0.148 | C35: 0.0592 | D35: 2.499 | E35: 1.217 | K35: =[1]!Th230Age(H35, G35) -> 0
A36: 4205-5 | B36: 0.1362 | C36: 0.0553 | D36: 2.467 | E36: 1.23 | F36: 1.383 | G36: 1.002 | H36: 1.122 | I36: 53.57 | J36: 2.555 | K36: =[1]!Th230Age(H36, G36) -> 0
A37: 4205-5d | B37: 0.1364 | C37: 0.0557 | D37: 2.449 | E37: 1.239 | K37: =[1]!Th230Age(H37, G37) -> 0
A38: 4205-5i | B38: 0.1393 | C38: 0.0558 | D38: 2.496 | E38: 1.217 | F38: 1.396 | G38: 1.004 | H38: 1.148 | K38: =[1]!Th230Age(H38, G38) -> 0
A39: 4205-6 | B39: 0.1335 | C39: 0.0547 | D39: 2.448 | E39: 1.239 | F39: 1.39 | G39: 1.002 | H39: 1.12 | I39: 52.67 | J39: 2.55 | K39: =[1]!Th230Age(H39, G39) -> 0
A40: 4205-6d | B40: 0.1344 | C40: 0.0549 | D40: 2.446 | E40: 1.239 | K40: =[1]!Th230Age(H40, G40) -> 0
A41: 4205-6d | B41: 0.1343 | C41: 0.0549 | D41: 2.449 | E41: 1.24 | F41: 0.993 | K41: =[1]!Th230Age(H41, G41) -> 0
A42: 4205-6i | B42: 0.1285 | C42: 0.0526 | D42: 2.443 | E42: 1.248 | F42: 1.385 | G42: 1.001 | H42: 1.114 | K42: =[1]!Th230Age(H42, G42) -> 0
A43: 4205-6i | C43: 0.0521 | K43: =[1]!Th230Age(H43, G43) -> 0
A44: 2392-9i | B44: 0.116 | C44: 0.0476 | D44: 2.436 | E44: 1.246 | F44: 1.402 | G44: 1.005 | H44: 1.125 | K44: =[1]!Th230Age(H44, G44) -> 0

Sheet H57
